Workbook

Sheet PERFORACIONES
A1: CONFIGURACIÓN DE PERFORACIONES | G1: 1 | H1: 1 | I1: 1; Lineal 1X1 | J1: 1 | K1: 1 | L1: 1; Lineal 1X1
G2: 4 | H2: 4 | I2: 4; Matricial 2X2 | J2: 2 | K2: 2
A3: Tipo de perforación | B3: Vertical | G3: 5 | H3: 4 | I3: 4; Lineal 4X1 | J3: 4 | K3: 1
A4: Número de perforaciones | B4: 1 | C4: 1 | G4: 6 | H4: 5 | I4: 5; Lineal 5X1 | J4: 5 | K4: 1
A5: Radio de perforacion | B5: 0.054 | C5: m | G5: 7 | H5: 6 | I5: 6; Matricial 3X2 | J5: 3 | K5: 2
A6: Distancia entre perforaciones | B6: 4.88 | C6: m | G6: 8 | H6: 6 | I6: 6; Lineal 6X1 | J6: 6 | K6: 1
A7: Geometría de perforación | B7: 1 | G7: 9 | H7: 7 | I7: 7; Lineal 7X1 | J7: 7 | K7: 1
A8: Conductividad Térmica Mortero | B8: 0.7 | C8: W/m°K | G8: 10 | H8: 8 | I8: 8; Matricial 4X2 | J8: 4 | K8: 2
A9: Ratio de diseño | B9: 1.00 | G9: 12 | H9: 8 | I9: 8; Lineal 8X1 | J9: 8 | K9: 1
G10: 14 | H10: 9 | I10: 9; Matricial 3X3 | J10: 3 | K10: 3
G11: 15 | H11: 9 | I11: 9; Lineal 9X1 | J11: 9 | K11: 1
G12: 16 | H12: 10 | I12: 10; Matricial 5X2 | J12: 5 | K12: 2
G13: 18 | H13: 12 | I13: 12; Matricial 4X3 | J13: 4 | K13: 3
G14: 20 | H14: 12 | I14: 12; Matricial 6X2 | J14: 6 | K14: 2
G15: 21 | H15: 14 | I15: 14; Matricial 7X2 | J15: 7 | K15: 2
G16: 22 | H16: 15 | I16: 15; Matricial 5X3 | J16: 5 | K16: 3
G17: 24 | H17: 16 | I17: 16; Matricial 4X4 | J17: 4 | K17: 4
G18: 25 | H18: 16 | I18: 16; Matricial 8X2 | J18: 8 | K18: 2
G19: 26 | H19: 18 | I19: 18; Matricial 6X3 | J19: 6 | K19: 3
G20: 27 | H20: 18 | I20: 18; Matricial 9X2 | J20: 9 | K20: 2
G21: 28 | H21: 20 | I21: 20; Matricial 5X4 | J21: 5 | K21: 4
G22: 30 | H22: 20 | I22: 20; Matricial 10X2 | J22: 10 | K22: 2
G23: 32 | H23: 21 | I23: 21; Matricial 7X3 | J23: 7 | K23: 3
G24: 33 | H24: 22 | I24: 22; Matricial 11X2 | J24: 11 | K24: 2
G25: 34 | H25: 24 | I25: 24; Matricial 6X4 | J25: 6 | K25: 4
G26: 35 | H26: 24 | I26: 24; Matricial 8X3 | J26: 8 | K26: 3
G27: 36 | H27: 24 | I27: 24; Matricial 12X2 | J27: 12 | K27: 2
G28: 39 | H28: 25 | I28: 25; Matricial 5X5 | J28: 5 | K28: 5
G29: 40 | H29: 26 | I29: 26; Matricial 13X2 | J29: 13 | K29: 2
G30: 42 | H30: 27 | I30: 27; Matricial 9X3 | J30: 9 | K30: 3
G31: 44 | H31: 28 | I31: 28; Matricial 7X4 | J31: 7 | K31: 4
G32: 45 | H32: 28 | I32: 28; Matricial 14X2 | J32: 14 | K32: 2
G33: 48 | H33: 30 | I33: 30; Matricial 6X5 | J33: 6 | K33: 5
G34: 49 | H34: 30 | I34: 30; Matricial 10X3 | J34: 10 | K34: 3
G35: 50 | H35: 30 | I35: 30; Matricial 15X2 | J35: 15 | K35: 2
G36: 51 | H36: 32 | I36: 32; Matricial 8X4 | J36: 8 | K36: 4
G37: 52 | H37: 32 | I37: 32; Matricial 16X2 | J37: 16 | K37: 2
G38: 54 | H38: 33 | I38: 33; Matricial 11X3 | J38: 11 | K38: 3
G39: 55 | H39: 34 | I39: 34; Matricial 17X2 | J39: 17 | K39: 2
G40: 56 | H40: 35 | I40: 35; Matricial 7X5 | J40: 7 | K40: 5
G41: 57 | H41: 36 | I41: 36; Matricial 6X6 | J41: 6 | K41: 6
G42: 60 | H42: 36 | I42: 36; Matricial 9X4 | J42: 9 | K42: 4
G43: 63 | H43: 36 | I43: 36; Matricial 12X3 | J43: 12 | K43: 3
G44: 64 | H44: 36 | I44: 36; Matricial 18X2 | J44: 18 | K44: 2
G45: 65 | H45: 39 | I45: 39; Matricial 13X3 | J45: 13 | K45: 3
G46: 66 | H46: 40 | I46: 40; Matricial 8X5 | J46: 8 | K46: 5
G47: 68 | H47: 40 | I47: 40; Matricial 10X4 | J47: 10 | K47: 4
G48: 69 | H48: 42 | I48: 42; Matricial 7X6 | J48: 7 | K48: 6
G49: 70 | H49: 42 | I49: 42; Matricial 14X3 | J49: 14 | K49: 3
G50: 72 | H50: 44 | I50: 44; Matricial 11X4 | J50: 11 | K50: 4
G51: 75 | H51: 45 | I51: 45; Matricial 9X5 | J51: 9 | K51: 5
G52: 76 | H52: 45 | I52: 45; Matricial 15X3 | J52: 15 | K52: 3
G53: 77 | H53: 48 | I53: 48; Matricial 8X6 | J53: 8 | K53: 6
G54: 78 | H54: 48 | I54: 48; Matricial 12X4 | J54: 12 | K54: 4
G55: 80 | H55: 48 | I55: 48; Matricial 16X3 | J55: 16 | K55: 3
G56: 81 | H56: 49 | I56: 49; Matricial 7X7 | J56: 7 | K56: 7
G57: 84 | H57: 50 | I57: 50; Matricial 10X5 | J57: 10 | K57: 5
G58: 85 | H58: 51 | I58: 51; Matricial 17X3 | J58: 17 | K58: 3
G59: 88 | H59: 52 | I59: 52; Matricial 13X4 | J59: 13 | K59: 4
G60: 90 | H60: 54 | I60: 54; Matricial 9X6 | J60: 9 | K60: 6
G61: 91 | H61: 54 | I61: 54; Matricial 18X3 | J61: 18 | K61: 3
G62: 92 | H62: 55 | I62: 55; Matricial 11X5 | J62: 11 | K62: 5
G63: 95 | H63: 56 | I63: 56; Matricial 8X7 | J63: 8 | K63: 7
G64: 96 | H64: 56 | I64: 56; Matricial 14X4 | J64: 14 | K64: 4
G65: 98 | H65: 57 | I65: 57; Matricial 19X3 | J65: 19 | K65: 3
G66: 99 | H66: 60 | I66: 60; Matricial 10X6 | J66: 10 | K66: 6
G67: 100 | H67: 60 | I67: 60; Matricial 12X5 | J67: 12 | K67: 5
G68: 102 | H68: 60 | I68: 60; Matricial 15X4 | J68: 15 | K68: 4
G69: 104 | H69: 60 | I69: 60; Matricial 20X3 | J69: 20 | K69: 3
G70: 105 | H70: 63 | I70: 63; Matricial 9X7 | J70: 9 | K70: 7
G71: 108 | H71: 63 | I71: 63; Matricial 21X3 | J71: 21 | K71: 3
G72: 110 | H72: 64 | I72: 64; Matricial 8X8 | J72: 8 | K72: 8
G73: 112 | H73: 64 | I73: 64; Matricial 16X4 | J73: 16 | K73: 4
G74: 114 | H74: 65 | I74: 65; Matricial 13X5 | J74: 13 | K74: 5
G75: 115 | H75: 66 | I75: 66; Matricial 11X6 | J75: 11 | K75: 6
G76: 116 | H76: 66 | I76: 66; Matricial 22X3 | J76: 22 | K76: 3
G77: 117 | H77: 68 | I77: 68; Matricial 17X4 | J77: 17 | K77: 4
G78: 119 | H78: 69 | I78: 69; Matricial 23X3 | J78: 23 | K78: 3
G79: 120 | H79: 70 | I79: 70; Matricial 10X7 | J79: 10 | K79: 7
G80: 121 | H80: 70 | I80: 70; Matricial 14X5 | J80: 14 | K80: 5
G81: 124 | H81: 72 | I81: 72; Matricial 9X8 | J81: 9 | K81: 8
G82: 125 | H82: 72 | I82: 72; Matricial 12X6 | J82: 12 | K82: 6
G83: 126 | H83: 72 | I83: 72; Matricial 18X4 | J83: 18 | K83: 4
G84: 128 | H84: 72 | I84: 72; Matricial 24X3 | J84: 24 | K84: 3
G85: 130 | H85: 75 | I85: 75; Matricial 15X5 | J85: 15 | K85: 5
G86: 132 | H86: 75 | I86: 75; Matricial 25X3 | J86: 25 | K86: 3
G87: 133 | H87: 76 | I87: 76; Matricial 19X4 | J87: 19 | K87: 4
G88: 135 | H88: 77 | I88: 77; Matricial 11X7 | J88: 11 | K88: 7
G89: 136 | H89: 78 | I89: 78; Matricial 13X6 | J89: 13 | K89: 6
G90: 138 | H90: 78 | I90: 78; Matricial 26X3 | J90: 26 | K90: 3
G91: 140 | H91: 80 | I91: 80; Matricial 10X8 | J91: 10 | K91: 8
G92: 143 | H92: 80 | I92: 80; Matricial 16X5 | J92: 16 | K92: 5
G93: 144 | H93: 80 | I93: 80; Matricial 20X4 | J93: 20 | K93: 4
H94: 81 | I94: 81; Matricial 9X9 | J94: 9 | K94: 9
H95: 81 | I95: 81; Matricial 27X3 | J95: 27 | K95: 3
H96: 84 | I96: 84; Matricial 12X7 | J96: 12 | K96: 7
H97: 84 | I97: 84; Matricial 14X6 | J97: 14 | K97: 6
H98: 84 | I98: 84; Matricial 21X4 | J98: 21 | K98: 4
H99: 85 | I99: 85; Matricial 17X5 | J99: 17 | K99: 5
H100: 88 | I100: 88; Matricial 11X8 | J100: 11 | K100: 8
H101: 88 | I101: 88; Matricial 22X4 | J101: 22 | K101: 4
H102: 90 | I102: 90; Matricial 10X9 | J102: 10 | K102: 9
H103: 90 | I103: 90; Matricial 15X6 | J103: 15 | K103: 6
H104: 90 | I104: 90; Matricial 18X5 | J104: 18 | K104: 5
H105: 91 | I105: 91; Matricial 13X7 | J105: 13 | K105: 7
H106: 92 | I106: 92; Matricial 23X4 | J106: 23 | K106: 4
H107: 95 | I107: 95; Matricial 19X5 | J107: 19 | K107: 5
H108: 96 | I108: 96; Matricial 12X8 | J108: 12 | K108: 8
H109: 96 | I109: 96; Matricial 16X6 | J109: 16 | K109: 6
H110: 96 | I110: 96; Matricial 24X4 | J110: 24 | K110: 4
H111: 98 | I111: 98; Matricial 14X7 | J111: 14 | K111: 7
H112: 99 | I112: 99; Matricial 11X9 | J112: 11 | K112: 9
H113: 100 | I113: 100; Matricial 10X10 | J113: 10 | K113: 10
H114: 100 | I114: 100; Matricial 20X5 | J114: 20 | K114: 5
H115: 100 | I115: 100; Matricial 25X4 | J115: 25 | K115: 4
H116: 102 | I116: 102; Matricial 17X6 | J116: 17 | K116: 6
H117: 104 | I117: 104; Matricial 13X8 | J117: 13 | K117: 8
H118: 104 | I118: 104; Matricial 26X4 | J118: 26 | K118: 4
H119: 105 | I119: 105; Matricial 15X7 | J119: 15 | K119: 7
H120: 105 | I120: 105; Matricial 21X5 | J120: 21 | K120: 5
H121: 108 | I121: 108; Matricial 12X9 | J121: 12 | K121: 9
H122: 108 | I122: 108; Matricial 18X6 | J122: 18 | K122: 6
H123: 108 | I123: 108; Matricial 27X4 | J123: 27 | K123: 4
H124: 110 | I124: 110; Matricial 11X10 | J124: 11 | K124: 10
H125: 110 | I125: 110; Matricial 22X5 | J125: 22 | K125: 5
H126: 112 | I126: 112; Matricial 14X8 | J126: 14 | K126: 8
H127: 112 | I127: 112; Matricial 16X7 | J127: 16 | K127: 7
H128: 112 | I128: 112; Matricial 28X4 | J128: 28 | K128: 4
H129: 114 | I129: 114; Matricial 19X6 | J129: 19 | K129: 6
H130: 115 | I130: 115; Matricial 23X5 | J130: 23 | K130: 5
H131: 116 | I131: 116; Matricial 29X4 | J131: 29 | K131: 4
H132: 117 | I132: 117; Matricial 13X9 | J132: 13 | K132: 9
H133: 119 | I133: 119; Matricial 17X7 | J133: 17 | K133: 7
H134: 120 | I134: 120; Matricial 12X10 | J134: 12 | K134: 10
H135: 120 | I135: 120; Matricial 15X8 | J135: 15 | K135: 8
H136: 120 | I136: 120; Matricial 20X6 | J136: 20 | K136: 6
H137: 120 | I137: 120; Matricial 24X5 | J137: 24 | K137: 5
H138: 120 | I138: 120; Matricial 30X4 | J138: 30 | K138: 4
H139: 121 | I139: 121; Matricial 11X11 | J139: 11 | K139: 11
H140: 124 | I140: 124; Matricial 31X4 | J140: 31 | K140: 4
H141: 125 | I141: 125; Matricial 25X5 | J141: 25 | K141: 5
H142: 126 | I142: 126; Matricial 14X9 | J142: 14 | K142: 9
H143: 126 | I143: 126; Matricial 18X7 | J143: 18 | K143: 7
H144: 126 | I144: 126; Matricial 21X6 | J144: 21 | K144: 6
H145: 128 | I145: 128; Matricial 16X8 | J145: 16 | K145: 8
H146: 128 | I146: 128; Matricial 32X4 | J146: 32 | K146: 4
H147: 130 | I147: 130; Matricial 13X10 | J147: 13 | K147: 10
H148: 130 | I148: 130; Matricial 26X5 | J148: 26 | K148: 5
H149: 132 | I149: 132; Matricial 12X11 | J149: 12 | K149: 11
H150: 132 | I150: 132; Matricial 22X6 | J150: 22 | K150: 6
H151: 132 | I151: 132; Matricial 33X4 | J151: 33 | K151: 4
H152: 133 | I152: 133; Matricial 19X7 | J152: 19 | K152: 7
H153: 135 | I153: 135; Matricial 15X9 | J153: 15 | K153: 9
H154: 135 | I154: 135; Matricial 27X5 | J154: 27 | K154: 5
H155: 136 | I155: 136; Matricial 17X8 | J155: 17 | K155: 8
H156: 136 | I156: 136; Matricial 34X4 | J156: 34 | K156: 4
H157: 138 | I157: 138; Matricial 23X6 | J157: 23 | K157: 6
H158: 140 | I158: 140; Matricial 14X10 | J158: 14 | K158: 10
H159: 140 | I159: 140; Matricial 20X7 | J159: 20 | K159: 7
H160: 140 | I160: 140; Matricial 28X5 | J160: 28 | K160: 5
H161: 140 | I161: 140; Matricial 35X4 | J161: 35 | K161: 4
H162: 143 | I162: 143; Matricial 13X11 | J162: 13 | K162: 11
H163: 144 | I163: 144; Matricial 12X12 | J163: 12 | K163: 12
H164: 144 | I164: 144; Matricial 16X9 | J164: 16 | K164: 9
H165: 144 | I165: 144; Matricial 18X8 | J165: 18 | K165: 8
H166: 144 | I166: 144; Matricial 24X6 | J166: 24 | K166: 6
H167: 144 | I167: 144; Matricial 36X4 | J167: 36 | K167: 4

Sheet TUBERIA Y FLUIDO
A1: SELECCIÓN TUBERIA | D1: SELECCIÓN FLUIDO | H1: =B9 -> 0.025 | I1: =IF(B3="Polietileno","PE32","PB4") -> PE32 | J1: =IF(B4="PE32","PN4",IF(OR(B4="PE50A",B4="PE50B",B4="PE80",B4="PE100"),"PN6","PN8")) -> PN6 | K1: =IF(OR(AND(B4="PE50A",B5="PN6"),AND(B4="PE50A",B5="PN16"),AND(B4="PE50B",B5="PN6"),AND(B4="PE80",B5="PN6"),AND(B4="PE100",B5="PN25")),"","3/4''") -> 
H2: =B9+0.006 -> 0.031 | I2: =IF(B3="Polietileno","PE50A","PB5") -> PE50A | J2: =IF(B4="PE32","PN6",IF(OR(B4="PE50A",B4="PE50B",B4="PE80",B4="PE100"),"PN10","PN10")) -> PN10 | K2: =IF(OR(AND(B4="PE50A",B5="PN16"),AND(B4="PE80",B5="PN6"),AND(B4="PB4",B5="PN8")),"","1''") -> 1''
A3: Material | B3: Polietileno | D3: Fluido | E3: Agua Pura | H3: =(2*PERFORACIONES!B5-2*B9)/3+B9 -> 0.044 | I3: =IF(B3="Polietileno","PE50B","") -> PE50B | J3: =IF(B4="PE32","PN10",IF(OR(B4="PE50A",B4="PE50B",B4="PE100"),"PN16","")) -> PN16 | K3: =IF(OR(AND(B4="PE80",B5="PN6"),AND(B4="PB4",B5="PN8")),"","1 1/4''") -> 1 1/4''
A4: Tipo | B4: PE50A | D4: % en peso Anticongelante | E4: 0 | F4: % | H4: =2*PERFORACIONES!B5-B9 -> 0.083 | I4: =IF(B3="Polietileno","PE80","") -> PE80 | J4: =IF(B4="PE100","PN25","") ->  | K4: =IF(OR(AND(B4="PB4",B5="PN8")),"","1 1/2''") -> 1 1/2''
A5: Presión Nominal | B5: PN6 | D5: Temperatura media fluido | E5: 32 | F5: °C | I5: =IF(B3="Polietileno","PE100","") -> PE100 | K5: =IF(OR(AND(B4="PB4",B5="PN8"),AND(B4="PB4",B5="PN10")),"","2''") -> 2''
A6: Diámetro Nominal | B6: 1'' | D6: Flujo total del sistema | E6: 1,044.6 | F6: l/h | K6: =IF(OR(AND(B4="PB4",B5="PN8"),AND(B4="PB4",B5="PN10")),"","2 1/2''") -> 2 1/2''
A7: Distancia centro-centro U-tube | B7: 0.065 | C7: m | D7: Flujo por perforación | E7: =E6/PERFORACIONES!C4 -> 1045 | F7: l/h
A8: Diametro Interno | B8: =VLOOKUP(CONCATENATE(B3,B4,B5,B6),'DATOS TUBERIAS'!$A$2:$H$108,7,FALSE)/1000 -> 0.021 | C8: m | D8: Densidad | E8: =VLOOKUP(E3,'DATOS FLUIDOS'!$A$2:$G$4,4,FALSE) -> 998.1 | F8: kg/m3
A9: Diametro Externo | B9: =VLOOKUP(CONCATENATE(B3,B4,B5,B6),'DATOS TUBERIAS'!$A$2:$H$108,6,FALSE)/1000 -> 0.025 | C9: m | D9: Capacidad Térmica | E9: =VLOOKUP(E3,'DATOS FLUIDOS'!$A$2:$G$4,5,FALSE) -> 4,173.0 | F9: J/kg°K
A10: Conductividad Térmica | B10: =VLOOKUP(CONCATENATE(B3,B4,B5,B6),'DATOS TUBERIAS'!$A$2:$H$108,8,FALSE) -> 0.430 | C10: W/m°K | D10: Conductividad Térmica | E10: =VLOOKUP(E3,'DATOS FLUIDOS'!$A$2:$G$4,6,FALSE) -> 0.593 | F10: W/m°K
D11: Viscosidad | E11: =VLOOKUP(E3,'DATOS FLUIDOS'!$A$2:$G$4,7,FALSE) -> 0.00100 | F11: Pa s
D12: Coeficiente de convección | E12: ='PROPIEDAD FLUIDOS'!H27*1000/3600 -> 3,737 | F12: W/m2°K
D13: N° de Reynolds | E13: ='PROPIEDAD FLUIDOS'!H7 -> 17,524

Sheet TERRENO
A1: SELECCIÓN DEL TERRENO
A3: Tipo Suelo | B3: DEFINIDO POR EL USUARIO - Fort Polk
A4: Temperatura imperturbable | B4: 19.9 | C4: °C
A5: Conductividad Térmica | B5: =VLOOKUP($B$3,'DATOS SUELOS'!$A$4:$F$42,4,FALSE) -> 2.423 | C5: W/m°K
A6: Capacidad Térmica | B6: =VLOOKUP($B$3,'DATOS SUELOS'!$A$4:$F$42,6,FALSE) -> 2.676 | C6: MJ/m3°K
A7: Difusividad Térmica | B7: =B5*3600*24/(B6*1000000) -> 0.078 | C7: m2/día

Sheet METODO
A1: SELECCIÓN MÉTODO INGRESO DE CARGAS TÉRMICAS
A3: 1 | B3: MÉTODO DIRECTO | D3: MÉTODO GRADOS DÍA

Sheet C.T. DIRECTO
A1: INGRESO CARGAS TÉRMICAS - METODO DIRECTO
A2: Mes | B2: Total Calefacción kWh | C2: Total Refrigeración kWh | D2: Pot. Max. Calefacción kW | E2: Pot. Max. Refrigeración kW | F2: Calor Absorbido kWh | G2: Calor Inyectado kWh
A3: Enero | B3: 868.1 | C3: 0.0 | D3: 4.6 | E3: 0.0 | F3: 645.1 | G3: 0.0 | H3: 31
A4: Febrero | B4: 550.4 | C4: 0.0 | D4: 4.5 | E4: 0.0 | F4: 408.3 | G4: 0.0 | H4: 28
A5: Marzo | B5: 344.1 | C5: 0.0 | D5: 3.7 | E5: 0.0 | F5: 254.1 | G5: 0.0 | H5: 31
A6: Abril | B6: 0.0 | C6: 83.8 | D6: 0.0 | E6: 3.2 | F6: 0.0 | G6: 97.0 | H6: 30
A7: Mayo | B7: 0.0 | C7: 532.8 | D7: 0.0 | E7: 4.5 | F7: 0.0 | G7: 625.1 | H7: 31
A8: Junio | B8: 0.0 | C8: 837.0 | D8: 0.0 | E8: 4.8 | F8: 0.0 | G8: 987.4 | H8: 30
A9: Julio | B9: 0.0 | C9: 1,821.1 | D9: 0.0 | E9: 5.3 | F9: 0.0 | G9: 2,263.7 | H9: 31
A10: Agosto | B10: 0.0 | C10: 1,825.5 | D10: 0.0 | E10: 5.7 | F10: 0.0 | G10: 2,271.6 | H10: 31
A11: Septiembre | B11: 0.0 | C11: 1,205.7 | D11: 0.0 | E11: 5.1 | F11: 0.0 | G11: 1,491.4 | H11: 30
A12: Octubre | B12: 86.8 | C12: 97.3 | D12: 1.2 | E12: 3.6 | F12: 58.9 | G12: 120.2 | H12: 31
A13: Noviembre | B13: 35.5 | C13: 0.0 | D13: 3.6 | E13: 0.0 | F13: 26.1 | G13: 0.0 | H13: 30
A14: Diciembre | B14: 301.9 | C14: 0.0 | D14: 4.4 | E14: 0.0 | F14: 223.0 | G14: 0.0 | H14: 31

Sheet C.T. GRADOS DIA
A1: INGRESO CARGAS TÉRMICAS - MÉTODO GRADOS DIAS
A3: Coef. Volumétrico de pérdidas | B3: 0.89 | C3: W/°C m3
A4: Volumen a climatizar | B4: 224 | C4: m3
A5: Coef. Uso de la instalación | B5: 1
A6: Coef. Intermitencia instalación | B6: 0.85
B8: CALEFACCIÓN | D8: REFRIGERACIÓN
A9: Temperatura Interior de Proyecto | B9: 21.1 | C9: °C | D9: 23.3 | E9: °C
A10: Temperatura Exterior de Proyecto | B10: -5 | C10: °C | D10: 35 | E10: °C
A12: MES | B12: Grados día | C12: Consumo [KWh] | D12: Grados día | E12: Consumo [KWh]
A13: Enero | B13: 502 | C13: =$B$3*$B$4*$B$5*$B$6*B13*0.024 -> 2,041.6 | D13: 16 | E13: =$B$3*$B$4*$B$5*$B$6*D13*0.024 -> 65.1 | F13: 31
A14: Febrero | B14: 374 | C14: =$B$3*$B$4*$B$5*$B$6*B14*0.024 -> 1,521.0 | D14: 28 | E14: =$B$3*$B$4*$B$5*$B$6*D14*0.024 -> 113.9 | F14: 28
A15: Marzo | B15: 219 | C15: 890.7 | D15: 84 | E15: 341.6 | F15: 31
A16: Abril | B16: 79 | C16: 321.3 | D16: 174 | E16: 707.6 | F16: 30
A17: Mayo | B17: 16 | C17: 65.1 | D17: 333 | E17: 1,354.3 | F17: 31
A18: Junio | B18: 0 | C18: 0.0 | D18: 503 | E18: 2,045.7 | F18: 30
A19: Julio | B19: 0 | C19: 0.0 | D19: 535 | E19: 2,175.8 | F19: 31
A20: Agosto | B20: 0 | C20: 0.0 | D20: 563 | E20: 2,289.7 | F20: 31
A21: Septiembre | B21: 7 | C21: 28.5 | D21: 366 | E21: 1,488.5 | F21: 30
A22: Octubre | B22: 120 | C22: 488.0 | D22: 176 | E22: 715.8 | F22: 31
A23: Noviembre | B23: 267 | C23: 1,085.9 | D23: 54 | E23: 219.6 | F23: 30
A24: Diciembre | B24: 460 | C24: 1,870.8 | D24: 21 | E24: 85.4 | F24: 31

Sheet BOMBA DE CALOR
A1: CONFIGURACION BOMBA DE CALOR
B3: CALEFACCION | C3: REFRIGERACION
A4: Temperatura Entrada Fluido | B4: 0 | C4: 29.44 | D4: °C
A5: COP Bomba de Calor | B5: 4.08 | C5: 3.89
A6: Potencia Nominal Bomba de Calor | B6: 3.63 | C6: 5.33 | D6: kW
A7: Potencia Máxima Demandada | B7: =IF(METODO!A3=1,MAX('C.T. DIRECTO'!$D$3:$D$14),'C.T. GRADOS DIA'!B3*'C.T. GRADOS DIA'!B4*('C.T. GRADOS DIA'!B9-'C.T. GRADOS DIA'!B10)/1000) -> 4.6 | C7: =IF(METODO!A3=1,MAX('C.T. DIRECTO'!$E$3:$E$14),'C.T. GRADOS DIA'!B3*'C.T. GRADOS DIA'!B4*('C.T. GRADOS DIA'!D10-'C.T. GRADOS DIA'!D9)/1000) -> 5.7 | D7: kW
A8: Carga máxima al terreno por hora | B8: =B7-B7/B5 -> 3.5 | C8: =C7+C7/C5 -> 7.1 | D8: kW
A9: Carga máxima al terreno por mes | B9: =IF(METODO!A3=1,VLOOKUP($B$7,'C.T. DIRECTO'!$D$3:$F$14,3,FALSE)/(VLOOKUP($B$7,'C.T. DIRECTO'!$D$3:$H$14,5,FALSE)*24),MAX('C.T. GRADOS DIA'!C13:C24)/(VLOOKUP(MAX('C.T. GRADOS DIA'!C13:C24),'C.T. GRADOS DIA'!C13:F24,4,FALSE)*24)-(MAX('C.T. GRADOS DIA'!C13:C24)/(VLOOKUP(MAX('C.T. GRADOS DIA'!C13:C24),'C.T. GRADOS DIA'!C13:F24,4,FALSE)*24))/B5) -> 0.9 | C9: =IF(METODO!A3=1,VLOOKUP($C$7,'C.T. DIRECTO'!$E$3:$G$14,3,FALSE)/(VLOOKUP($C$7,'C.T. DIRECTO'!$E$3:$H$14,4,FALSE)*24),MAX('C.T. GRADOS DIA'!E13:E24)/(VLOOKUP(MAX('C.T. GRADOS DIA'!E13:E24),'C.T. GRADOS DIA'!E13:F24,2,FALSE)*24)+(MAX('C.T. GRADOS DIA'!E13:E24)/(VLOOKUP(MAX('C.T. GRADOS DIA'!E13:E24),'C.T. GRADOS DIA'!E13:F24,2,FALSE)*24))/C5) -> 3.1 | D9: kW
A10: Carga promedio al terreno por año | B10: =IF(METODO!A3=1,ABS((SUM('C.T. DIRECTO'!$F$3:$F$14)-SUM('C.T. DIRECTO'!$G$3:$G$14))/8760),ABS(((SUM('C.T. GRADOS DIA'!C13:C24)-SUM('C.T. GRADOS DIA'!C13:C24)/B5)-(SUM('C.T. GRADOS DIA'!E13:E24)+SUM('C.T. GRADOS DIA'!E13:E24)/C5))/8760)) -> 0.71 | C10: =IF(METODO!A3=1,ABS((SUM('C.T. DIRECTO'!$F$3:$F$14)-SUM('C.T. DIRECTO'!$G$3:$G$14))/8760),ABS(((SUM('C.T. GRADOS DIA'!C13:C24)-SUM('C.T. GRADOS DIA'!C13:C24)/B5)-(SUM('C.T. GRADOS DIA'!E13:E24)+SUM('C.T. GRADOS DIA'!E13:E24)/C5))/8760)) -> 0.71 | D10: kW

Sheet RESULTADOS
A1: RESULTADOS
D2: CALEFACCIÓN | F2: REFRIGERACIÓN
A3: GENERAL | B3: Longitud Total | C3: L | D3: =IF(PERFORACIONES!B4=1,'DIM CALEFACCION'!D35,'DIM CALEFACCION'!E69) -> 55.2 | F3: =IF(PERFORACIONES!B4=1,'DIM REFRIGERACIÓN'!D35,'DIM REFRIGERACIÓN'!E69) -> 198.4 | G3: m
B4: Longitud por Perforación | C4: H | D4: =IF(PERFORACIONES!B4=1,'DIM CALEFACCION'!D35,'DIM CALEFACCION'!E70) -> 55.2 | F4: =IF(PERFORACIONES!B4=1,'DIM REFRIGERACIÓN'!D35,'DIM REFRIGERACIÓN'!E70) -> 198.4 | G4: m
A6: TERRENO | B6: Resistencia Térmica Terreno 6h | C6: R6h | D6: ='DIM CALEFACCION'!D29 -> 0.097 | F6: ='DIM REFRIGERACIÓN'!D29 -> 0.097 | G6: m°K/W
B7: Resistencia Térmica Terreno 1m | C7: R1m | D7: ='DIM CALEFACCION'!D30 -> 0.149 | F7: ='DIM REFRIGERACIÓN'!D30 -> 0.149 | G7: m°K/W
B8: Resistencia Térmica Terreno 10y | C8: R10y | D8: ='DIM CALEFACCION'!D31 -> 0.158 | F8: ='DIM REFRIGERACIÓN'!D31 -> 0.158 | G8: m°K/W
A10: PERFORACIÓN | B10: Resistencia Térmica Convectiva | C10: Rconv | D10: ='DIM CALEFACCION'!D24 -> 0.004 | F10: ='DIM REFRIGERACIÓN'!D24 -> 0.004 | G10: m°K/W
B11: Resistencia Térmica Tubería | C11: Rp | D11: ='DIM CALEFACCION'!D25 -> 0.065 | F11: ='DIM REFRIGERACIÓN'!D25 -> 0.065 | G11: m°K/W
B12: Resistencia Térmica Mortero | C12: Rg | D12: ='DIM CALEFACCION'!D26 -> 0.136 | F12: ='DIM REFRIGERACIÓN'!D26 -> 0.136 | G12: m°K/W
B13: Resietencia Térmica Perforación | C13: Rb | D13: ='DIM CALEFACCION'!D27 -> 0.171 | F13: ='DIM REFRIGERACIÓN'!D27 -> 0.171 | G13: m°K/W
A15: BOMBA DE CALOR | B15: T° salida fluido bomba de calor | C15: ToutHP | D15: ='DIM CALEFACCION'!D33 -> -2.89 | F15: ='DIM REFRIGERACIÓN'!D33 -> 35.33 | G15: °C
B16: T° media fluido en perforación | C16: Tm | D16: ='DIM CALEFACCION'!D34 -> -1.45 | F16: ='DIM REFRIGERACIÓN'!D34 -> 32.38 | G16: °C
A18: INTERACCION PERFORACIONES | B18: Ratio distancia-profundidad | C18: B/H | D18: =IF(PERFORACIONES!B4=1,"-",'DIM CALEFACCION'!E64) -> - | F18: =IF(PERFORACIONES!B4=1,"-",'DIM REFRIGERACIÓN'!E64) -> - | G18: -
B19: Logaritmo del tiempo adimensional | C19: ln(t10y/ts) | D19: =IF(PERFORACIONES!B4=1,"-",'DIM CALEFACCION'!E65) -> - | F19: =IF(PERFORACIONES!B4=1,"-",'DIM REFRIGERACIÓN'!E65) -> - | G19: -
B20: Penalización en temperatura | C20: Tp | D20: =IF(PERFORACIONES!B4=1,"-",'DIM CALEFACCION'!E66) -> - | F20: =IF(PERFORACIONES!B4=1,"-",'DIM REFRIGERACIÓN'!E66) -> - | G20: °C

Sheet SENSIBILIDAD
B1: Variación Distancia U-Tube | E1: Variación T° Imperturbable | H1: Variacion Distancia Entre Perforaciones | K1: Variacion Conductividad Termica mortero | N1: Variación Conductividad Termica Suelo | Q1: Variación Capacidad Termica Suelo
A2: Delta Variable | B2: Distancia U-Tube | C2: Longitud Total | D2: Delta Longitud | E2: T° Imperturbable | F2: Longitud Total | G2: Delta Longitud | H2: Distancia Entre Perforaciones | I2: Longitud Total | J2: Delta Longitud | K2: Conductividad Termica mortero | L2: Longitud Total | M2: Delta Longitud | N2: Conductividad Termica Suelo | O2: Longitud Total | P2: Delta Longitud | Q2: Capacidad Termica Suelo | R2: Longitud Total | S2: Delta Longitud
A3: -50% | B3: =B$13*(1+$A3) -> 0.033 | C3: 248.0 | D3: =C3/C$13-1 -> 25.0% | E3: =E$13*(1+$A3) -> 9.950 | F3: 110.4 | G3: =F3/F$13-1 -> -44.4% | H3: =H$13*(1+$A3) -> 2.440 | I3: 198.4 | J3: =I3/I$13-1 -> 0.0% | K3: =K$13*(1+$A3) -> 0.350 | L3: 272.6 | M3: =L3/L$13-1 -> 37.4% | N3: =N$13*(1+$A3) -> 1.212 | O3: 279.3 | P3: =O3/O$13-1 -> 40.8% | Q3: =Q$13*(1+$A3) -> 1.338 | R3: 210.3 | S3: =R3/R$13-1 -> 6.0%
A4: -45% | B4: 0.036 | C4: 241.7 | D4: =C4/C$13-1 -> 21.8% | E4: 10.945 | F4: 115.5 | G4: =F4/F$13-1 -> -41.8% | H4: 2.684 | I4: 198.4 | J4: =I4/I$13-1 -> 0.0% | K4: 0.385 | L4: 259.1 | M4: =L4/L$13-1 -> 30.6% | N4: 1.333 | O4: 265.3 | P4: =O4/O$13-1 -> 33.8% | Q4: 1.472 | R4: 208.6 | S4: =R4/R$13-1 -> 5.2%
A5: -40% | B5: 0.039 | C5: 235.9 | D5: 18.9% | E5: 11.940 | F5: 121.1 | G5: -38.9% | H5: 2.928 | I5: 198.4 | J5: 0.0% | K5: 0.420 | L5: 247.9 | M5: 25.0% | N5: 1.454 | O5: 253.5 | P5: 27.8% | Q5: 1.606 | R5: 207.1 | S5: 4.4%
A6: -35% | B6: 0.042 | C6: 230.5 | D6: 16.2% | E6: 12.935 | F6: 127.3 | G6: -35.8% | H6: 3.172 | I6: 198.4 | J6: 0.0% | K6: 0.455 | L6: 238.4 | M6: 20.2% | N6: 1.575 | O6: 243.3 | P6: 22.7% | Q6: 1.739 | R6: 205.7 | S6: 3.7%
A7: -30% | B7: 0.046 | C7: 225.4 | D7: 13.6% | E7: 13.930 | F7: 134.2 | G7: -32.4% | H7: 3.416 | I7: 198.4 | J7: 0.0% | K7: 0.490 | L7: 230.3 | M7: 16.1% | N7: 1.696 | O7: 234.5 | P7: 18.2% | Q7: 1.873 | R7: 204.5 | S7: 3.1%
A8: -25% | B8: 0.049 | C8: 220.5 | D8: 11.2% | E8: 14.925 | F8: 141.9 | G8: -28.5% | H8: 3.660 | I8: 198.4 | J8: 0.0% | K8: 0.525 | L8: 223.2 | M8: 12.5% | N8: 1.817 | O8: 226.7 | P8: 14.3% | Q8: 2.007 | R8: 203.3 | S8: 2.5%
A9: -20% | B9: 0.052 | C9: 215.9 | D9: 8.8% | E9: 15.920 | F9: 150.4 | G9: -24.2% | H9: 3.904 | I9: 198.4 | J9: 0.0% | K9: 0.560 | L9: 217.0 | M9: 9.4% | N9: 1.938 | O9: 219.7 | P9: 10.8% | Q9: 2.141 | R9: 202.2 | S9: 1.9%
A10: -15% | B10: 0.055 | C10: 211.4 | D10: 6.6% | E10: 16.915 | F10: 160.1 | G10: -19.3% | H10: 4.148 | I10: 198.4 | J10: 0.0% | K10: 0.595 | L10: 211.5 | M10: 6.6% | N10: 2.060 | O10: 213.6 | P10: 7.6% | Q10: 2.275 | R10: 201.1 | S10: 1.4%
A11: -10% | B11: 0.059 | C11: 207.0 | D11: 4.4% | E11: 17.910 | F11: 171.1 | G11: -13.7% | H11: 4.392 | I11: 198.4 | J11: 0.0% | K11: 0.630 | L11: 206.7 | M11: 4.2% | N11: 2.181 | O11: 208.0 | P11: 4.8% | Q11: 2.408 | R11: 200.2 | S11: 0.9%
A12: -5% | B12: =B$13*(1+$A12) -> 0.062 | C12: 202.7 | D12: 2.2% | E12: =E$13*(1+$A12) -> 18.905 | F12: 183.7 | G12: -7.4% | H12: =H$13*(1+$A12) -> 4.636 | I12: 198.4 | J12: 0.0% | K12: =K$13*(1+$A12) -> 0.665 | L12: 202.3 | M12: 2.0% | N12: =N$13*(1+$A12) -> 2.302 | O12: 203.0 | P12: 2.3% | Q12: =Q$13*(1+$A12) -> 2.542 | R12: 199.2 | S12: 0.4%
A13: 0% | B13: 0.065 | C13: 198.4 | D13: 0.0% | E13: 19.900 | F13: 198.4 | G13: 0.0% | H13: 4.880 | I13: 198.4 | J13: 0.0% | K13: 0.700 | L13: 198.4 | M13: 0.0% | N13: 2.423 | O13: 198.4 | P13: 0.0% | Q13: 2.676 | R13: 198.4 | S13: 0.0%
A14: 5% | B14: =B$13*(1+$A14) -> 0.068 | C14: 194.0 | D14: -2.2% | E14: =E$13*(1+$A14) -> 20.895 | F14: 215.6 | G14: 8.7% | H14: =H$13*(1+$A14) -> 5.124 | I14: 198.4 | J14: 0.0% | K14: =K$13*(1+$A14) -> 0.735 | L14: 194.8 | M14: -1.8% | N14: =N$13*(1+$A14) -> 2.544 | O14: 194.2 | P14: -2.1% | Q14: =Q$13*(1+$A14) -> 2.810 | R14: 197.6 | S14: -0.4%
A15: 10% | B15: =B$13*(1+$A15) -> 0.072 | C15: 189.6 | D15: -4.4% | E15: =E$13*(1+$A15) -> 21.890 | F15: 236.0 | G15: 19.0% | H15: =H$13*(1+$A15) -> 5.368 | I15: 198.4 | J15: 0.0% | K15: =K$13*(1+$A15) -> 0.770 | L15: 191.6 | M15: -3.4% | N15: =N$13*(1+$A15) -> 2.665 | O15: 190.4 | P15: -4.0% | Q15: =Q$13*(1+$A15) -> 2.944 | R15: 196.8 | S15: -0.8%
A16: 15% | B16: 0.075 | C16: 185.0 | D16: -6.7% | E16: 22.885 | F16: 260.7 | G16: 31.4% | H16: 5.612 | I16: 198.4 | J16: 0.0% | K16: 0.805 | L16: 188.6 | M16: -4.9% | N16: 2.786 | O16: 186.8 | P16: -5.8% | Q16: 3.077 | R16: 196.0 | S16: -1.2%
A17: 20% | B17: 0.078 | C17: 180.2 | D17: -9.1% | E17: 23.880 | F17: 291.2 | G17: 46.8% | H17: 5.856 | I17: 198.4 | J17: 0.0% | K17: 0.840 | L17: 185.9 | M17: -6.3% | N17: 2.908 | O17: 183.6 | P17: -7.5% | Q17: 3.211 | R17: 195.3 | S17: -1.5%
A18: 25% | B18: 0.081 | C18: 175.1 | D18: -11.7% | E18: 24.875 | F18: 329.8 | G18: 66.3% | H18: 6.100 | I18: 198.4 | J18: 0.0% | K18: 0.875 | L18: 183.4 | M18: -7.5% | N18: 3.029 | O18: 180.5 | P18: -9.0% | Q18: 3.345 | R18: 194.7 | S18: -1.9%
A19: 30% | E19: 25.870 | F19: 380.2 | G19: 91.7% | H19: 6.344 | I19: 198.4 | J19: 0.0% | K19: 0.910 | L19: 181.1 | M19: -8.7% | N19: 3.150 | O19: 177.7 | P19: -10.4% | Q19: 3.479 | R19: 194.0 | S19: -2.2%
A20: 35% | E20: 26.865 | F20: 448.8 | G20: 126.2% | H20: 6.588 | I20: 198.4 | J20: 0.0% | K20: 0.945 | L20: 179.0 | M20: -9.8% | N20: 3.271 | O20: 175.1 | P20: -11.7% | Q20: 3.613 | R20: 193.4 | S20: -2.5%
A21: 40% | E21: 27.860 | F21: 547.5 | G21: 176.0% | H21: 6.832 | I21: 198.4 | J21: 0.0% | K21: 0.980 | L21: 177.0 | M21: -10.8% | N21: 3.392 | O21: 172.6 | P21: -13.0% | Q21: 3.746 | R21: 192.8 | S21: -2.8%
A22: 45% | E22: 28.855 | F22: 701.8 | G22: 253.8% | H22: 7.076 | I22: 198.4 | J22: 0.0% | K22: 1.015 | L22: 175.1 | M22: -11.7% | N22: 3.513 | O22: 170.3 | P22: -14.1% | Q22: 3.880 | R22: 192.2 | S22: -3.1%
A23: 50% | E23: 29.850 | F23: 977.5 | G23: 392.7% | H23: 7.320 | I23: 198.4 | J23: 0.0% | K23: 1.050 | L23: 173.4 | M23: -12.6% | N23: 3.635 | O23: 168.2 | P23: -15.2% | Q23: 4.014 | R23: 191.6 | S23: -3.4%

Sheet DIM CALEFACCION
A1: PRIMER SET DE INPUTS | C1: UNIDADES | D1: Perforación única | E1: Multiples perforaciones
A2: Calor inyectado/absorbido
A3: Carga máxima al terreno por hora | B3: qh | C3: W | D3: =-'BOMBA DE CALOR'!B8*1000 -> -3495 | E3: =D3 -> -3495 | F3: Convención de signos: +: Calor inyectado al terreno -: Calor absorbido del terreno
A4: Carga máxima al terreno por mes | B4: qm | C4: W | D4: =-'BOMBA DE CALOR'!B9*1000 -> -867 | E4: =D4 -> -867
A5: Carga al terreno por año | B5: qy | C5: W | D5: =-'BOMBA DE CALOR'!B10*1000 -> -712 | E5: =D5 -> -712
A6: Propiedades del terreno
A7: Conductividad Térmica | B7: k | C7: W.m-1K-1 | D7: =TERRENO!B5 -> 2.423 | E7: =D7 -> 2.423
A8: Difusividad Térmica | B8: α | C8: m2.día-1 | D8: =TERRENO!B7 -> 0.078 | E8: =D8 -> 0.078 | F8: <- Aviso: α debe estar entre el rango 0,025 y 0,2 m²/day
A9: Temperatura imperturbable del terreno | B9: Tg | C9: °C | D9: =TERRENO!B4 -> 19.9 | E9: =D9 -> 19.9
A10: Propiedades del fluido
A11: Calor Específico | B11: Cp | C11: J.kg-1.K-1 | D11: ='TUBERIA Y FLUIDO'!E9 -> 4173.0 | E11: =D11 -> 4173.0
A12: Ratio flujo másico total por carga máxima al terreno por hora | B12: mfls | C12: kg.s-1.kW-1 | D12: =('TUBERIA Y FLUIDO'!E6/1000/3600*'TUBERIA Y FLUIDO'!E8)/'BOMBA DE CALOR'!B8 -> 0.083 | E12: =D12 -> 0.083 | F12: <- Flujo másico en kg/s dividido por el valor absoluto de la carga máxima al terreno por hora en kW
A13: max/min temperatura de entrada a bomba de calor | B13: TinHP | C13: °C | D13: ='BOMBA DE CALOR'!B4 -> 0 | E13: =D13 -> 0 | F13: <- Criterio de diseño para la operación de la bomba de calor
A14: Características de perforación
A15: Radio de perforacion | B15: rbore | C15: m | D15: =PERFORACIONES!B5 -> 0.054 | E15: =D15 -> 0.054 | F15: <- Aviso: rbore debe estar entre el rango 0,05 and 0,1 m
A16: Radio interno tubería | B16: rpin | C16: m | D16: ='TUBERIA Y FLUIDO'!B8/2 -> 0.0105 | E16: 0.0105
A17: Radio externo tubería | B17: rpext | C17: m | D17: ='TUBERIA Y FLUIDO'!B9/2 -> 0.0125 | E17: 0.0125
A18: Conductividad térmica mortero | B18: kgrout | C18: W.m-1.K-1 | D18: =PERFORACIONES!B8 -> 0.70 | E18: 0.70
A19: Conductividad térmica tubería | B19: kpipe | C19: W.m-1.K-1 | D19: ='TUBERIA Y FLUIDO'!B10 -> 0.43 | E19: 0.43
A20: Distancia entre centros de u-tubería | B20: LU | C20: m | D20: ='TUBERIA Y FLUIDO'!B7 -> 0.0650 | E20: 0.0650
A21: Coeficiente de convección interna | B21: hconv | C21: W.m-2.K-1 | D21: ='TUBERIA Y FLUIDO'!E12 -> 3737 | E21: 3737
A22: PRIMER SET DE RESULTADOS
A23: Cálculo de la resistencia térmica efectiva de perforación
A24: Resistencia convectiva | B24: Rconv | C24: m.K.W-1 | D24: =1/(2*PI()*D$16*D$21) -> 0.004 | E24: =1/(2*PI()*E$16*E$21) -> 0.004
A25: Resistencia térmica tubería | B25: Rp | C25: m.K.W-1 | D25: =LN(D$17/D$16)/(2*PI()*D$19) -> 0.065 | E25: =LN(E$17/E$16)/(2*PI()*E$19) -> 0.065
A26: Resistencia térmica mortero | B26: Rg | C26: m.K.W-1 | D26: =1/(4*PI()*D$18)*(LN(D$15/D$17)+LN(D$15/D$20)+(D$18-D$7)/(D$18+D$7)*LN(D$15^4/(D$15^4-(D$20/2)^4))) -> 0.136 | E26: =1/(4*PI()*E$18)*(LN(E$15/E$17)+LN(E$15/E$20)+(E$18-E$7)/(E$18+E$7)*LN(E$15^4/(E$15^4-(E$20/2)^4))) -> 0.136
A27: Resistencia térmica efectiva perforación | B27: Rb | C27: m.K.W-1 | D27: =D$26+(D$24+D$25)/2 -> 0.171 | E27: =E$26+(E$24+E$25)/2 -> 0.171
A28: Cálculo de la resistencia térmica efectiva del terreno
A29: corto plazo (pulso 6 horas) | B29: R6h | C29: m.K.W-1 | D29: =1/D$7*(coefficients!$C$4+coefficients!$C$5*D$15+coefficients!$C$6*D$15^2+coefficients!$C$7*D$8+coefficients!$C$8*D$8^2+coefficients!$C$9*LN(D$8)+coefficients!$C$10*LN(D$8)^2+coefficients!$C$11*D$15*D$8+coefficients!$C$12*D$15*LN(D$8)+coefficients!$C$13*D$8*LN(D$8)) -> 0.097 | E29: =1/E$7*(coefficients!$C$4+coefficients!$C$5*E$15+coefficients!$C$6*E$15^2+coefficients!$C$7*E$8+coefficients!$C$8*E$8^2+coefficients!$C$9*LN(E$8)+coefficients!$C$10*LN(E$8)^2+coefficients!$C$11*E$15*E$8+coefficients!$C$12*E$15*LN(E$8)+coefficients!$C$13*E$8*LN(E$8)) -> 0.097
A30: mediano plazo (pulso 1 mes) | B30: R1m | C30: m.K.W-1 | D30: =1/D$7*(coefficients!$D$4+coefficients!$D$5*D$15+coefficients!$D$6*D$15^2+coefficients!$D$7*D$8+coefficients!$D$8*D$8^2+coefficients!$D$9*LN(D$8)+coefficients!$D$10*LN(D$8)^2+coefficients!$D$11*D$15*D$8+coefficients!$D$12*D$15*LN(D$8)+coefficients!$D$13*D$8*LN(D$8)) -> 0.149 | E30: =1/E$7*(coefficients!$D$4+coefficients!$D$5*E$15+coefficients!$D$6*E$15^2+coefficients!$D$7*E$8+coefficients!$D$8*E$8^2+coefficients!$D$9*LN(E$8)+coefficients!$D$10*LN(E$8)^2+coefficients!$D$11*E$15*E$8+coefficients!$D$12*E$15*LN(E$8)+coefficients!$D$13*E$8*LN(E$8)) -> 0.149
A31: largo plazo (pulso 10 años) | B31: R10y | C31: m.K.W-1 | D31: =1/D$7*(coefficients!$E$4+coefficients!$E$5*D$15+coefficients!$E$6*D$15^2+coefficients!$E$7*D$8+coefficients!$E$8*D$8^2+coefficients!$E$9*LN(D$8)+coefficients!$E$10*LN(D$8)^2+coefficients!$E$11*D$15*D$8+coefficients!$E$12*D$15*LN(D$8)+coefficients!$E$13*D$8*LN(D$8)) -> 0.158 | E31: =1/E$7*(coefficients!$E$4+coefficients!$E$5*E$15+coefficients!$E$6*E$15^2+coefficients!$E$7*E$8+coefficients!$E$8*E$8^2+coefficients!$E$9*LN(E$8)+coefficients!$E$10*LN(E$8)^2+coefficients!$E$11*E$15*E$8+coefficients!$E$12*E$15*LN(E$8)+coefficients!$E$13*E$8*LN(E$8)) -> 0.158
A32: Cálculo largo total sin interferencia térmica entre perforaciones
A33: Temperatura de salida del fluido en la bomba de calor | B33: ToutHP | C33: °C | D33: =D$13+D$3/(D$12*ABS(D$3)/1000*D$11) -> -2.9 | E33: =E$13+E$3/(E$12*ABS(E$3)/1000*E$11) -> -2.9
A34: Temperatura media del fluido en la perforación | B34: Tm | C34: °C | D34: =(D$13+D$33)/2 -> -1.4 | E34: =(E$13+E$33)/2 -> -1.4
A35: Largo total | B35: L | C35: m | D35: =(D$5*D$31+D$4*D$30+D$3*D$29+D$3*D$27)/(D$34-D$9) -> 55.2 | E35: =(E$5*E$31+E$4*E$30+E$3*E$29+E$3*E$27)/(E$34-E$9) -> 55.2
A36: SEGUNDO SET DE INPUTS
A37: Características del campo de perforaciones
A38: Distancia entre perforaciones | B38: B | C38: m | E38: =PERFORACIONES!B6 -> 4.88
A39: Número de perforaciones | B39: NB | C39: - | E39: 1 | F39: <- Aviso: NB debe estar entre en el rango 4 y 144
A40: Ratio configuración de perforaciones | B40: A | C40: - | E40: =PERFORACIONES!B9 -> 1.00 | F40: <- Número de perforaciones en la dirección más extensa sobre número de perforaciones en la otra dirección, A debe estar entre el rango 1 y 9
A41: RESULTADOS FINALES
A42: Cálculo del largo total (con penalización Tp)
A43: Primera Iteración | E43: =IF(E44<0.05,IF(E45<-2,"! B/H<0.05 & ln(t10y/ts)<-2",IF(E45>3,"! B/H<0.05 & ln(t10y/ts)>3","! B/H<0.05")),IF(E44>0.1,IF(E45<-2,"! B/H>0.1 & ln(t10y/ts)<-2",IF(E45>3,"! B/H>0.1 & ln(t10y/ts)>3","! B/H>0.1")),IF(E45<-2,"! ln(t10y/ts)<-2",IF(E45>3,"! ln(t10y/ts)>3","")))) -> 
A44: Ratio distancia-profundidad | B44: B/H | C44: - | E44: =E$38/(E$35/E$39) -> 0.088 | F44: Inota importante en el cálculo y evaluación de Tp:
A45: Logaritmo del tiempo adimensional | B45: ln(t10y/ts) | C45: - | E45: =LN(365.25*10/((E$35/E$39)^2/(9*E$8))) -> -0.171 | F45: La correlación para Tp está basada en 1485 simulaciones que cubren las siguientes configuraciones de perforaciones:
A46: Penalización en temperatura | B46: Tp | C46: °C | E46: =E$5/(2*PI()*E$7*E$35)*(coefficients!$H$4+coefficients!$H$5*E44+coefficients!$H$6*E44^2+coefficients!$H$7*E44^3+coefficients!$H$8*E45+coefficients!$H$9*E45^2+coefficients!$H$10*E45^3+coefficients!$H$11*E$39+coefficients!$H$12*E$39^2+coefficients!$H$13*E$39^3+coefficients!$H$14*E$40+coefficients!$H$15*E$40^2+coefficients!$H$16*E$40^3+coefficients!$H$17*E44*E45+coefficients!$H$18*E44*E45^2+coefficients!$H$19*E44*E$39+coefficients!$H$20*E44*E$39^2+coefficients!$H$21*E44*E$40+coefficients!$H$22*E44*E$40^2+coefficients!$H$23*E44^2*E45+coefficients!$H$24*E44^2*E45^2+coefficients!$H$25*E44^2*E$39+coefficients!$H$26*E44^2*E$39^2+coefficients!$H$27*E44^2*E$40+coefficients!$H$28*E44^2*E$40^2+coefficients!$H$29*E45*E$39+coefficients!$H$30*E45*E$39^2+coefficients!$H$31*E45*E$40+coefficients!$H$32*E45*E$40^2+coefficients!$H$33*E45^2*E$39+coefficients!$H$34*E45^2*E$39^2+coefficients!$H$35*E45^2*E$40+coefficients!$H$36*E45^2*E$40^2+coefficients!$H$37*E$39*E$40+coefficients!$H$38*E$39*E$40^2+coefficients!$H$39*E$39^2*E$40+coefficients!$H$40*E$39^2*E$40^2) -> -2.316
A47: Largo total de perforaciones | B47: L | C47: m | E47: =(E$5*E$31+E$4*E$30+E$3*E$29+E$3*E$27)/(E$34-E$9-E46) -> 62.0
A48: Segunda Iteración | E48: =IF(E49<0.05,IF(E50<-2,"! B/H<0.05 & ln(t10y/ts)<-2",IF(E50>3,"! B/H<0.05 & ln(t10y/ts)>3","! B/H<0.05")),IF(E49>0.1,IF(E50<-2,"! B/H>0.1 & ln(t10y/ts)<-2",IF(E50>3,"! B/H>0.1 & ln(t10y/ts)>3","! B/H>0.1")),IF(E50<-2,"! ln(t10y/ts)<-2",IF(E50>3,"! ln(t10y/ts)>3","")))) -> 
A49: Ratio distancia-profundidad | B49: B/H | C49: - | E49: =E$38/(E47/E$39) -> 0.079
A50: Logaritmo del tiempo adimensional | B50: ln(t10y/ts) | C50: - | E50: =LN(365.25*10/((E47/E$39)^2/(9*E$8))) -> -0.401
A51: Penalización en temperatura | B51: Tp | C51: °C | E51: =E$5/(2*PI()*E$7*E47)*(coefficients!$H$4+coefficients!$H$5*E49+coefficients!$H$6*E49^2+coefficients!$H$7*E49^3+coefficients!$H$8*E50+coefficients!$H$9*E50^2+coefficients!$H$10*E50^3+coefficients!$H$11*E$39+coefficients!$H$12*E$39^2+coefficients!$H$13*E$39^3+coefficients!$H$14*E$40+coefficients!$H$15*E$40^2+coefficients!$H$16*E$40^3+coefficients!$H$17*E49*E50+coefficients!$H$18*E49*E50^2+coefficients!$H$19*E49*E$39+coefficients!$H$20*E49*E$39^2+coefficients!$H$21*E49*E$40+coefficients!$H$22*E49*E$40^2+coefficients!$H$23*E49^2*E50+coefficients!$H$24*E49^2*E50^2+coefficients!$H$25*E49^2*E$39+coefficients!$H$26*E49^2*E$39^2+coefficients!$H$27*E49^2*E$40+coefficients!$H$28*E49^2*E$40^2+coefficients!$H$29*E50*E$39+coefficients!$H$30*E50*E$39^2+coefficients!$H$31*E50*E$40+coefficients!$H$32*E50*E$40^2+coefficients!$H$33*E50^2*E$39+coefficients!$H$34*E50^2*E$39^2+coefficients!$H$35*E50^2*E$40+coefficients!$H$36*E50^2*E$40^2+coefficients!$H$37*E$39*E$40+coefficients!$H$38*E$39*E$40^2+coefficients!$H$39*E$39^2*E$40+coefficients!$H$40*E$39^2*E$40^2) -> -2.207
A52: Largo total de perforaciones | B52: L | C52: m | E52: =(E$5*E$31+E$4*E$30+E$3*E$29+E$3*E$27)/(E$34-E$9-E51) -> 61.6
A53: Tercera Iteración | E53: =IF(E54<0.05,IF(E55<-2,"! B/H<0.05 & ln(t10y/ts)<-2",IF(E55>3,"! B/H<0.05 & ln(t10y/ts)>3","! B/H<0.05")),IF(E54>0.1,IF(E55<-2,"! B/H>0.1 & ln(t10y/ts)<-2",IF(E55>3,"! B/H>0.1 & ln(t10y/ts)>3","! B/H>0.1")),IF(E55<-2,"! ln(t10y/ts)<-2",IF(E55>3,"! ln(t10y/ts)>3","")))) ->  | F53: Cuando es utilizado en estos rangos, Tp tiene una precisión de un +/- 10%.
A54: Ratio distancia-profundidad | B54: B/H | C54: - | E54: =E$38/(E52/E$39) -> 0.079 | F54: Sin embargo, en ciertos casos, cuando Tp es cercano a cero, los valores de Tp son menos precisos
A55: Logaritmo del tiempo adimensional | B55: ln(t10y/ts) | C55: - | E55: =LN(365.25*10/((E52/E$39)^2/(9*E$8))) -> -0.389 | F55: Esta inprecisión combinada con pequeños valores de (Tm-Tg) pueden llevar a valores de profundidad de perforación poco precisos
A56: Penalización en temperatura | B56: Tp | C56: °C | E56: =E$5/(2*PI()*E$7*E52)*(coefficients!$H$4+coefficients!$H$5*E54+coefficients!$H$6*E54^2+coefficients!$H$7*E54^3+coefficients!$H$8*E55+coefficients!$H$9*E55^2+coefficients!$H$10*E55^3+coefficients!$H$11*E$39+coefficients!$H$12*E$39^2+coefficients!$H$13*E$39^3+coefficients!$H$14*E$40+coefficients!$H$15*E$40^2+coefficients!$H$16*E$40^3+coefficients!$H$17*E54*E55+coefficients!$H$18*E54*E55^2+coefficients!$H$19*E54*E$39+coefficients!$H$20*E54*E$39^2+coefficients!$H$21*E54*E$40+coefficients!$H$22*E54*E$40^2+coefficients!$H$23*E54^2*E55+coefficients!$H$24*E54^2*E55^2+coefficients!$H$25*E54^2*E$39+coefficients!$H$26*E54^2*E$39^2+coefficients!$H$27*E54^2*E$40+coefficients!$H$28*E54^2*E$40^2+coefficients!$H$29*E55*E$39+coefficients!$H$30*E55*E$39^2+coefficients!$H$31*E55*E$40+coefficients!$H$32*E55*E$40^2+coefficients!$H$33*E55^2*E$39+coefficients!$H$34*E55^2*E$39^2+coefficients!$H$35*E55^2*E$40+coefficients!$H$36*E55^2*E$40^2+coefficients!$H$37*E$39*E$40+coefficients!$H$38*E$39*E$40^2+coefficients!$H$39*E$39^2*E$40+coefficients!$H$40*E$39^2*E$40^2) -> -2.215
A57: Largo total de perforaciones | B57: L | C57: m | E57: =(E$5*E$31+E$4*E$30+E$3*E$29+E$3*E$27)/(E$34-E$9-E56) -> 61.6
A58: Cuarta Iteración | E58: =IF(E59<0.05,IF(E60<-2,"! B/H<0.05 & ln(t10y/ts)<-2",IF(E60>3,"! B/H<0.05 & ln(t10y/ts)>3","! B/H<0.05")),IF(E59>0.1,IF(E60<-2,"! B/H>0.1 & ln(t10y/ts)<-2",IF(E60>3,"! B/H>0.1 & ln(t10y/ts)>3","! B/H>0.1")),IF(E60<-2,"! ln(t10y/ts)<-2",IF(E60>3,"! ln(t10y/ts)>3","")))) -> 
A59: Ratio distancia-profundidad | B59: B/H | C59: - | E59: =E$38/(E57/E$39) -> 0.079
A60: Logaritmo del tiempo adimensional | B60: ln(t10y/ts) | C60: - | E60: =LN(365.25*10/((E57/E$39)^2/(9*E$8))) -> -0.390
A61: Penalización en temperatura | B61: Tp | C61: °C | E61: =E$5/(2*PI()*E$7*E57)*(coefficients!$H$4+coefficients!$H$5*E59+coefficients!$H$6*E59^2+coefficients!$H$7*E59^3+coefficients!$H$8*E60+coefficients!$H$9*E60^2+coefficients!$H$10*E60^3+coefficients!$H$11*E$39+coefficients!$H$12*E$39^2+coefficients!$H$13*E$39^3+coefficients!$H$14*E$40+coefficients!$H$15*E$40^2+coefficients!$H$16*E$40^3+coefficients!$H$17*E59*E60+coefficients!$H$18*E59*E60^2+coefficients!$H$19*E59*E$39+coefficients!$H$20*E59*E$39^2+coefficients!$H$21*E59*E$40+coefficients!$H$22*E59*E$40^2+coefficients!$H$23*E59^2*E60+coefficients!$H$24*E59^2*E60^2+coefficients!$H$25*E59^2*E$39+coefficients!$H$26*E59^2*E$39^2+coefficients!$H$27*E59^2*E$40+coefficients!$H$28*E59^2*E$40^2+coefficients!$H$29*E60*E$39+coefficients!$H$30*E60*E$39^2+coefficients!$H$31*E60*E$40+coefficients!$H$32*E60*E$40^2+coefficients!$H$33*E60^2*E$39+coefficients!$H$34*E60^2*E$39^2+coefficients!$H$35*E60^2*E$40+coefficients!$H$36*E60^2*E$40^2+coefficients!$H$37*E$39*E$40+coefficients!$H$38*E$39*E$40^2+coefficients!$H$39*E$39^2*E$40+coefficients!$H$40*E$39^2*E$40^2) -> -2.215
A62: Largo total de perforaciones | B62: L | C62: m | E62: =(E$5*E$31+E$4*E$30+E$3*E$29+E$3*E$27)/(E$34-E$9-E61) -> 61.6
A63: Quinta Iteración | E63: =IF(E64<0.05,IF(E65<-2,"! B/H<0.05 & ln(t10y/ts)<-2",IF(E65>3,"! B/H<0.05 & ln(t10y/ts)>3","! B/H<0.05")),IF(E64>0.1,IF(E65<-2,"! B/H>0.1 & ln(t10y/ts)<-2",IF(E65>3,"! B/H>0.1 & ln(t10y/ts)>3","! B/H>0.1")),IF(E65<-2,"! ln(t10y/ts)<-2",IF(E65>3,"! ln(t10y/ts)>3","")))) -> 
A64: Ratio distancia-profundidad | B64: B/H | C64: - | E64: =E$38/(E62/E$39) -> 0.079
A65: Logaritmo del tiempo adimensional | B65: ln(t10y/ts) | C65: - | E65: =LN(365.25*10/((E62/E$39)^2/(9*E$8))) -> -0.390
A66: Penalización en temperatura | B66: Tp | C66: °C | E66: =E$5/(2*PI()*E$7*E62)*(coefficients!$H$4+coefficients!$H$5*E64+coefficients!$H$6*E64^2+coefficients!$H$7*E64^3+coefficients!$H$8*E65+coefficients!$H$9*E65^2+coefficients!$H$10*E65^3+coefficients!$H$11*E$39+coefficients!$H$12*E$39^2+coefficients!$H$13*E$39^3+coefficients!$H$14*E$40+coefficients!$H$15*E$40^2+coefficients!$H$16*E$40^3+coefficients!$H$17*E64*E65+coefficients!$H$18*E64*E65^2+coefficients!$H$19*E64*E$39+coefficients!$H$20*E64*E$39^2+coefficients!$H$21*E64*E$40+coefficients!$H$22*E64*E$40^2+coefficients!$H$23*E64^2*E65+coefficients!$H$24*E64^2*E65^2+coefficients!$H$25*E64^2*E$39+coefficients!$H$26*E64^2*E$39^2+coefficients!$H$27*E64^2*E$40+coefficients!$H$28*E64^2*E$40^2+coefficients!$H$29*E65*E$39+coefficients!$H$30*E65*E$39^2+coefficients!$H$31*E65*E$40+coefficients!$H$32*E65*E$40^2+coefficients!$H$33*E65^2*E$39+coefficients!$H$34*E65^2*E$39^2+coefficients!$H$35*E65^2*E$40+coefficients!$H$36*E65^2*E$40^2+coefficients!$H$37*E$39*E$40+coefficients!$H$38*E$39*E$40^2+coefficients!$H$39*E$39^2*E$40+coefficients!$H$40*E$39^2*E$40^2) -> -2.215
A67: Largo total de perforaciones | B67: L | C67: m | E67: =(E$5*E$31+E$4*E$30+E$3*E$29+E$3*E$27)/(E$34-E$9-E66) -> 61.6
A68: Resultados Finales
A69: Largo total de perforaciones | B69: L | C69: m | E69: =E67 -> 61.6
A70: Profundidad de perforación | B70: H | C70: m | E70: =E67/E$39 -> 61.6

Sheet DIM REFRIGERACIÓN
A1: PRIMER SET DE INPUTS | C1: UNIDADES | D1: Perforación única | E1: Multiples perforaciones
A2: Calor inyectado/absorbido
A3: Carga máxima al terreno por hora | B3: qh | C3: W | D3: ='BOMBA DE CALOR'!C8*1000 -> 7115 | E3: =D3 -> 7115 | F3: Convención de signos: +: Calor inyectado al terreno -: Calor absorbido del terreno
A4: Carga máxima al terreno por mes | B4: qm | C4: W | D4: ='BOMBA DE CALOR'!C9*1000 -> 3053 | E4: =D4 -> 3053
A5: Carga al terreno por año | B5: qy | C5: W | D5: ='BOMBA DE CALOR'!C10*1000 -> 712 | E5: =D5 -> 712
A6: Propiedades del terreno
A7: Conductividad Térmica | B7: k | C7: W.m-1K-1 | D7: =TERRENO!B5 -> 2.423 | E7: =D7 -> 2.423
A8: Difusividad Térmica | B8: α | C8: m2.día-1 | D8: =TERRENO!B7 -> 0.078 | E8: =D8 -> 0.078 | F8: <- Aviso: α debe estar entre el rango 0,025 y 0,2 m²/day
A9: Temperatura imperturbable del terreno | B9: Tg | C9: °C | D9: =TERRENO!B4 -> 19.9 | E9: =D9 -> 19.9
A10: Propiedades del fluido
A11: Calor Específico | B11: Cp | C11: J.kg-1.K-1 | D11: ='TUBERIA Y FLUIDO'!E9 -> 4173 | E11: =D11 -> 4173
A12: Ratio flujo másico total por carga máxima al terreno por hora | B12: mfls | C12: kg.s-1.kW-1 | D12: =('TUBERIA Y FLUIDO'!E6/1000/3600*'TUBERIA Y FLUIDO'!E8)/'BOMBA DE CALOR'!C8 -> 0.041 | E12: =D12 -> 0.041 | F12: <- Flujo másico en kg/s dividido por el valor absoluto de la carga máxima al terreno por hora en kW
A13: max/min temperatura de entrada a bomba de calor | B13: TinHP | C13: °C | D13: ='BOMBA DE CALOR'!C4 -> 29.44 | E13: =D13 -> 29.44 | F13: <- Criterio de diseño para la operación de la bomba de calor
A14: Características de perforación
A15: Radio de perforacion | B15: rbore | C15: m | D15: =PERFORACIONES!B5 -> 0.054 | E15: =D15 -> 0.054 | F15: <- Aviso: rbore debe estar entre el rango 0,05 and 0,1 m
A16: Radio interno tubería | B16: rpin | C16: m | D16: ='TUBERIA Y FLUIDO'!B8/2 -> 0.0105 | E16: 0.0105
A17: Radio externo tubería | B17: rpext | C17: m | D17: ='TUBERIA Y FLUIDO'!B9/2 -> 0.0125 | E17: 0.0125
A18: Conductividad térmica mortero | B18: kgrout | C18: W.m-1.K-1 | D18: =PERFORACIONES!B8 -> 0.70 | E18: 0.70
A19: Conductividad térmica tubería | B19: kpipe | C19: W.m-1.K-1 | D19: ='TUBERIA Y FLUIDO'!B10 -> 0.43 | E19: 0.43
A20: Distancia entre centros de u-tubería | B20: LU | C20: m | D20: ='TUBERIA Y FLUIDO'!B7 -> 0.0650 | E20: 0.0650
A21: Coeficiente de convección interna | B21: hconv | C21: W.m-2.K-1 | D21: ='TUBERIA Y FLUIDO'!E12 -> 3737 | E21: 3737
A22: PRIMER SET DE RESULTADOS
A23: Cálculo de la resistencia térmica efectiva de perforación
A24: Resistencia convectiva | B24: Rconv | C24: m.K.W-1 | D24: =1/(2*PI()*D$16*D$21) -> 0.004 | E24: =1/(2*PI()*E$16*E$21) -> 0.004
A25: Resistencia térmica tubería | B25: Rp | C25: m.K.W-1 | D25: =LN(D$17/D$16)/(2*PI()*D$19) -> 0.065 | E25: =LN(E$17/E$16)/(2*PI()*E$19) -> 0.065
A26: Resistencia térmica mortero | B26: Rg | C26: m.K.W-1 | D26: =1/(4*PI()*D$18)*(LN(D$15/D$17)+LN(D$15/D$20)+(D$18-D$7)/(D$18+D$7)*LN(D$15^4/(D$15^4-(D$20/2)^4))) -> 0.136 | E26: =1/(4*PI()*E$18)*(LN(E$15/E$17)+LN(E$15/E$20)+(E$18-E$7)/(E$18+E$7)*LN(E$15^4/(E$15^4-(E$20/2)^4))) -> 0.136
A27: Resistencia térmica efectiva perforación | B27: Rb | C27: m.K.W-1 | D27: =D$26+(D$24+D$25)/2 -> 0.171 | E27: =E$26+(E$24+E$25)/2 -> 0.171
A28: Cálculo de la resistencia térmica efectiva del terreno
A29: corto plazo (pulso 6 horas) | B29: R6h | C29: m.K.W-1 | D29: =1/D$7*(coefficients!$C$4+coefficients!$C$5*D$15+coefficients!$C$6*D$15^2+coefficients!$C$7*D$8+coefficients!$C$8*D$8^2+coefficients!$C$9*LN(D$8)+coefficients!$C$10*LN(D$8)^2+coefficients!$C$11*D$15*D$8+coefficients!$C$12*D$15*LN(D$8)+coefficients!$C$13*D$8*LN(D$8)) -> 0.097 | E29: =1/E$7*(coefficients!$C$4+coefficients!$C$5*E$15+coefficients!$C$6*E$15^2+coefficients!$C$7*E$8+coefficients!$C$8*E$8^2+coefficients!$C$9*LN(E$8)+coefficients!$C$10*LN(E$8)^2+coefficients!$C$11*E$15*E$8+coefficients!$C$12*E$15*LN(E$8)+coefficients!$C$13*E$8*LN(E$8)) -> 0.097
A30: mediano plazo (pulso 1 mes) | B30: R1m | C30: m.K.W-1 | D30: =1/D$7*(coefficients!$D$4+coefficients!$D$5*D$15+coefficients!$D$6*D$15^2+coefficients!$D$7*D$8+coefficients!$D$8*D$8^2+coefficients!$D$9*LN(D$8)+coefficients!$D$10*LN(D$8)^2+coefficients!$D$11*D$15*D$8+coefficients!$D$12*D$15*LN(D$8)+coefficients!$D$13*D$8*LN(D$8)) -> 0.149 | E30: =1/E$7*(coefficients!$D$4+coefficients!$D$5*E$15+coefficients!$D$6*E$15^2+coefficients!$D$7*E$8+coefficients!$D$8*E$8^2+coefficients!$D$9*LN(E$8)+coefficients!$D$10*LN(E$8)^2+coefficients!$D$11*E$15*E$8+coefficients!$D$12*E$15*LN(E$8)+coefficients!$D$13*E$8*LN(E$8)) -> 0.149
A31: largo plazo (pulso 10 años) | B31: R10y | C31: m.K.W-1 | D31: =1/D$7*(coefficients!$E$4+coefficients!$E$5*D$15+coefficients!$E$6*D$15^2+coefficients!$E$7*D$8+coefficients!$E$8*D$8^2+coefficients!$E$9*LN(D$8)+coefficients!$E$10*LN(D$8)^2+coefficients!$E$11*D$15*D$8+coefficients!$E$12*D$15*LN(D$8)+coefficients!$E$13*D$8*LN(D$8)) -> 0.158 | E31: =1/E$7*(coefficients!$E$4+coefficients!$E$5*E$15+coefficients!$E$6*E$15^2+coefficients!$E$7*E$8+coefficients!$E$8*E$8^2+coefficients!$E$9*LN(E$8)+coefficients!$E$10*LN(E$8)^2+coefficients!$E$11*E$15*E$8+coefficients!$E$12*E$15*LN(E$8)+coefficients!$E$13*E$8*LN(E$8)) -> 0.158
A32: Cálculo largo total sin interferencia térmica entre perforaciones
A33: Temperatura de salida del fluido en la bomba de calor | B33: ToutHP | C33: °C | D33: =D$13+D$3/(D$12*ABS(D$3)/1000*D$11) -> 35.3 | E33: =E$13+E$3/(E$12*ABS(E$3)/1000*E$11) -> 35.3
A34: Temperatura media del fluido en la perforación | B34: Tm | C34: °C | D34: =(D$13+D$33)/2 -> 32.4 | E34: =(E$13+E$33)/2 -> 32.4
A35: Largo total | B35: L | C35: m | D35: =(D$5*D$31+D$4*D$30+D$3*D$29+D$3*D$27)/(D$34-D$9) -> 198.4 | E35: =(E$5*E$31+E$4*E$30+E$3*E$29+E$3*E$27)/(E$34-E$9) -> 198.4
A36: SEGUNDO SET DE INPUTS
A37: Características del campo de perforaciones
A38: Distancia entre perforaciones | B38: B | C38: m | E38: =PERFORACIONES!B6 -> 4.88
A39: Número de perforaciones | B39: NB | C39: - | E39: 1 | F39: <- Aviso: NB debe estar entre en el rango 4 y 144
A40: Ratio configuración de perforaciones | B40: A | C40: - | E40: =PERFORACIONES!B9 -> 1.00 | F40: <- Número de perforaciones en la dirección más extensa sobre número de perforaciones en la otra dirección, A debe estar entre el rango 1 y 9
A41: RESULTADOS FINALES
A42: Cálculo del largo total (con penalización Tp)
A43: Primera Iteración | E43: =IF(E44<0.05,IF(E45<-2,"! B/H<0.05 & ln(t10y/ts)<-2",IF(E45>3,"! B/H<0.05 & ln(t10y/ts)>3","! B/H<0.05")),IF(E44>0.1,IF(E45<-2,"! B/H>0.1 & ln(t10y/ts)<-2",IF(E45>3,"! B/H>0.1 & ln(t10y/ts)>3","! B/H>0.1")),IF(E45<-2,"! ln(t10y/ts)<-2",IF(E45>3,"! ln(t10y/ts)>3","")))) -> ! B/H<0.05 & ln(t10y/ts)<-2
A44: Ratio distancia-profundidad | B44: B/H | C44: - | E44: =E$38/(E$35/E$39) -> 0.025 | F44: Inota importante en el cálculo y evaluación de Tp:
A45: Logaritmo del tiempo adimensional | B45: ln(t10y/ts) | C45: - | E45: =LN(365.25*10/((E$35/E$39)^2/(9*E$8))) -> -2.728 | F45: La correlación para Tp está basada en 1485 simulaciones que cubren las siguientes configuraciones de perforaciones:
A46: Penalización en temperatura | B46: Tp | C46: °C | E46: =E$5/(2*PI()*E$7*E$35)*(coefficients!$H$4+coefficients!$H$5*E44+coefficients!$H$6*E44^2+coefficients!$H$7*E44^3+coefficients!$H$8*E45+coefficients!$H$9*E45^2+coefficients!$H$10*E45^3+coefficients!$H$11*E$39+coefficients!$H$12*E$39^2+coefficients!$H$13*E$39^3+coefficients!$H$14*E$40+coefficients!$H$15*E$40^2+coefficients!$H$16*E$40^3+coefficients!$H$17*E44*E45+coefficients!$H$18*E44*E45^2+coefficients!$H$19*E44*E$39+coefficients!$H$20*E44*E$39^2+coefficients!$H$21*E44*E$40+coefficients!$H$22*E44*E$40^2+coefficients!$H$23*E44^2*E45+coefficients!$H$24*E44^2*E45^2+coefficients!$H$25*E44^2*E$39+coefficients!$H$26*E44^2*E$39^2+coefficients!$H$27*E44^2*E$40+coefficients!$H$28*E44^2*E$40^2+coefficients!$H$29*E45*E$39+coefficients!$H$30*E45*E$39^2+coefficients!$H$31*E45*E$40+coefficients!$H$32*E45*E$40^2+coefficients!$H$33*E45^2*E$39+coefficients!$H$34*E45^2*E$39^2+coefficients!$H$35*E45^2*E$40+coefficients!$H$36*E45^2*E$40^2+coefficients!$H$37*E$39*E$40+coefficients!$H$38*E$39*E$40^2+coefficients!$H$39*E$39^2*E$40+coefficients!$H$40*E$39^2*E$40^2) -> -1.004
A47: Largo total de perforaciones | B47: L | C47: m | E47: =(E$5*E$31+E$4*E$30+E$3*E$29+E$3*E$27)/(E$34-E$9-E46) -> 183.6
A48: Segunda Iteración | E48: =IF(E49<0.05,IF(E50<-2,"! B/H<0.05 & ln(t10y/ts)<-2",IF(E50>3,"! B/H<0.05 & ln(t10y/ts)>3","! B/H<0.05")),IF(E49>0.1,IF(E50<-2,"! B/H>0.1 & ln(t10y/ts)<-2",IF(E50>3,"! B/H>0.1 & ln(t10y/ts)>3","! B/H>0.1")),IF(E50<-2,"! ln(t10y/ts)<-2",IF(E50>3,"! ln(t10y/ts)>3","")))) -> ! B/H<0.05 & ln(t10y/ts)<-2
A49: Ratio distancia-profundidad | B49: B/H | C49: - | E49: =E$38/(E47/E$39) -> 0.027
A50: Logaritmo del tiempo adimensional | B50: ln(t10y/ts) | C50: - | E50: =LN(365.25*10/((E47/E$39)^2/(9*E$8))) -> -2.573
A51: Penalización en temperatura | B51: Tp | C51: °C | E51: =E$5/(2*PI()*E$7*E47)*(coefficients!$H$4+coefficients!$H$5*E49+coefficients!$H$6*E49^2+coefficients!$H$7*E49^3+coefficients!$H$8*E50+coefficients!$H$9*E50^2+coefficients!$H$10*E50^3+coefficients!$H$11*E$39+coefficients!$H$12*E$39^2+coefficients!$H$13*E$39^3+coefficients!$H$14*E$40+coefficients!$H$15*E$40^2+coefficients!$H$16*E$40^3+coefficients!$H$17*E49*E50+coefficients!$H$18*E49*E50^2+coefficients!$H$19*E49*E$39+coefficients!$H$20*E49*E$39^2+coefficients!$H$21*E49*E$40+coefficients!$H$22*E49*E$40^2+coefficients!$H$23*E49^2*E50+coefficients!$H$24*E49^2*E50^2+coefficients!$H$25*E49^2*E$39+coefficients!$H$26*E49^2*E$39^2+coefficients!$H$27*E49^2*E$40+coefficients!$H$28*E49^2*E$40^2+coefficients!$H$29*E50*E$39+coefficients!$H$30*E50*E$39^2+coefficients!$H$31*E50*E$40+coefficients!$H$32*E50*E$40^2+coefficients!$H$33*E50^2*E$39+coefficients!$H$34*E50^2*E$39^2+coefficients!$H$35*E50^2*E$40+coefficients!$H$36*E50^2*E$40^2+coefficients!$H$37*E$39*E$40+coefficients!$H$38*E$39*E$40^2+coefficients!$H$39*E$39^2*E$40+coefficients!$H$40*E$39^2*E$40^2) -> -0.847
A52: Largo total de perforaciones | B52: L | C52: m | E52: =(E$5*E$31+E$4*E$30+E$3*E$29+E$3*E$27)/(E$34-E$9-E51) -> 185.8
A53: Tercera Iteración | E53: =IF(E54<0.05,IF(E55<-2,"! B/H<0.05 & ln(t10y/ts)<-2",IF(E55>3,"! B/H<0.05 & ln(t10y/ts)>3","! B/H<0.05")),IF(E54>0.1,IF(E55<-2,"! B/H>0.1 & ln(t10y/ts)<-2",IF(E55>3,"! B/H>0.1 & ln(t10y/ts)>3","! B/H>0.1")),IF(E55<-2,"! ln(t10y/ts)<-2",IF(E55>3,"! ln(t10y/ts)>3","")))) -> ! B/H<0.05 & ln(t10y/ts)<-2 | F53: Cuando es utilizado en estos rangos, Tp tiene una precisión de un +/- 10%.
A54: Ratio distancia-profundidad | B54: B/H | C54: - | E54: =E$38/(E52/E$39) -> 0.026 | F54: Sin embargo, en ciertos casos, cuando Tp es cercano a cero, los valores de Tp son menos precisos
A55: Logaritmo del tiempo adimensional | B55: ln(t10y/ts) | C55: - | E55: =LN(365.25*10/((E52/E$39)^2/(9*E$8))) -> -2.597 | F55: Esta inprecisión combinada con pequeños valores de (Tm-Tg) pueden llevar a valores de profundidad de perforación poco precisos
A56: Penalización en temperatura | B56: Tp | C56: °C | E56: =E$5/(2*PI()*E$7*E52)*(coefficients!$H$4+coefficients!$H$5*E54+coefficients!$H$6*E54^2+coefficients!$H$7*E54^3+coefficients!$H$8*E55+coefficients!$H$9*E55^2+coefficients!$H$10*E55^3+coefficients!$H$11*E$39+coefficients!$H$12*E$39^2+coefficients!$H$13*E$39^3+coefficients!$H$14*E$40+coefficients!$H$15*E$40^2+coefficients!$H$16*E$40^3+coefficients!$H$17*E54*E55+coefficients!$H$18*E54*E55^2+coefficients!$H$19*E54*E$39+coefficients!$H$20*E54*E$39^2+coefficients!$H$21*E54*E$40+coefficients!$H$22*E54*E$40^2+coefficients!$H$23*E54^2*E55+coefficients!$H$24*E54^2*E55^2+coefficients!$H$25*E54^2*E$39+coefficients!$H$26*E54^2*E$39^2+coefficients!$H$27*E54^2*E$40+coefficients!$H$28*E54^2*E$40^2+coefficients!$H$29*E55*E$39+coefficients!$H$30*E55*E$39^2+coefficients!$H$31*E55*E$40+coefficients!$H$32*E55*E$40^2+coefficients!$H$33*E55^2*E$39+coefficients!$H$34*E55^2*E$39^2+coefficients!$H$35*E55^2*E$40+coefficients!$H$36*E55^2*E$40^2+coefficients!$H$37*E$39*E$40+coefficients!$H$38*E$39*E$40^2+coefficients!$H$39*E$39^2*E$40+coefficients!$H$40*E$39^2*E$40^2) -> -0.872
A57: Largo total de perforaciones | B57: L | C57: m | E57: =(E$5*E$31+E$4*E$30+E$3*E$29+E$3*E$27)/(E$34-E$9-E56) -> 185.4
A58: Cuarta Iteración | E58: =IF(E59<0.05,IF(E60<-2,"! B/H<0.05 & ln(t10y/ts)<-2",IF(E60>3,"! B/H<0.05 & ln(t10y/ts)>3","! B/H<0.05")),IF(E59>0.1,IF(E60<-2,"! B/H>0.1 & ln(t10y/ts)<-2",IF(E60>3,"! B/H>0.1 & ln(t10y/ts)>3","! B/H>0.1")),IF(E60<-2,"! ln(t10y/ts)<-2",IF(E60>3,"! ln(t10y/ts)>3","")))) -> ! B/H<0.05 & ln(t10y/ts)<-2
A59: Ratio distancia-profundidad | B59: B/H | C59: - | E59: =E$38/(E57/E$39) -> 0.026
A60: Logaritmo del tiempo adimensional | B60: ln(t10y/ts) | C60: - | E60: =LN(365.25*10/((E57/E$39)^2/(9*E$8))) -> -2.593
A61: Penalización en temperatura | B61: Tp | C61: °C | E61: =E$5/(2*PI()*E$7*E57)*(coefficients!$H$4+coefficients!$H$5*E59+coefficients!$H$6*E59^2+coefficients!$H$7*E59^3+coefficients!$H$8*E60+coefficients!$H$9*E60^2+coefficients!$H$10*E60^3+coefficients!$H$11*E$39+coefficients!$H$12*E$39^2+coefficients!$H$13*E$39^3+coefficients!$H$14*E$40+coefficients!$H$15*E$40^2+coefficients!$H$16*E$40^3+coefficients!$H$17*E59*E60+coefficients!$H$18*E59*E60^2+coefficients!$H$19*E59*E$39+coefficients!$H$20*E59*E$39^2+coefficients!$H$21*E59*E$40+coefficients!$H$22*E59*E$40^2+coefficients!$H$23*E59^2*E60+coefficients!$H$24*E59^2*E60^2+coefficients!$H$25*E59^2*E$39+coefficients!$H$26*E59^2*E$39^2+coefficients!$H$27*E59^2*E$40+coefficients!$H$28*E59^2*E$40^2+coefficients!$H$29*E60*E$39+coefficients!$H$30*E60*E$39^2+coefficients!$H$31*E60*E$40+coefficients!$H$32*E60*E$40^2+coefficients!$H$33*E60^2*E$39+coefficients!$H$34*E60^2*E$39^2+coefficients!$H$35*E60^2*E$40+coefficients!$H$36*E60^2*E$40^2+coefficients!$H$37*E$39*E$40+coefficients!$H$38*E$39*E$40^2+coefficients!$H$39*E$39^2*E$40+coefficients!$H$40*E$39^2*E$40^2) -> -0.868
A62: Largo total de perforaciones | B62: L | C62: m | E62: =(E$5*E$31+E$4*E$30+E$3*E$29+E$3*E$27)/(E$34-E$9-E61) -> 185.5
A63: Quinta Iteración | E63: =IF(E64<0.05,IF(E65<-2,"! B/H<0.05 & ln(t10y/ts)<-2",IF(E65>3,"! B/H<0.05 & ln(t10y/ts)>3","! B/H<0.05")),IF(E64>0.1,IF(E65<-2,"! B/H>0.1 & ln(t10y/ts)<-2",IF(E65>3,"! B/H>0.1 & ln(t10y/ts)>3","! B/H>0.1")),IF(E65<-2,"! ln(t10y/ts)<-2",IF(E65>3,"! ln(t10y/ts)>3","")))) -> ! B/H<0.05 & ln(t10y/ts)<-2
A64: Ratio distancia-profundidad | B64: B/H | C64: - | E64: =E$38/(E62/E$39) -> 0.026
A65: Logaritmo del tiempo adimensional | B65: ln(t10y/ts) | C65: - | E65: =LN(365.25*10/((E62/E$39)^2/(9*E$8))) -> -2.594
A66: Penalización en temperatura | B66: Tp | C66: °C | E66: =E$5/(2*PI()*E$7*E62)*(coefficients!$H$4+coefficients!$H$5*E64+coefficients!$H$6*E64^2+coefficients!$H$7*E64^3+coefficients!$H$8*E65+coefficients!$H$9*E65^2+coefficients!$H$10*E65^3+coefficients!$H$11*E$39+coefficients!$H$12*E$39^2+coefficients!$H$13*E$39^3+coefficients!$H$14*E$40+coefficients!$H$15*E$40^2+coefficients!$H$16*E$40^3+coefficients!$H$17*E64*E65+coefficients!$H$18*E64*E65^2+coefficients!$H$19*E64*E$39+coefficients!$H$20*E64*E$39^2+coefficients!$H$21*E64*E$40+coefficients!$H$22*E64*E$40^2+coefficients!$H$23*E64^2*E65+coefficients!$H$24*E64^2*E65^2+coefficients!$H$25*E64^2*E$39+coefficients!$H$26*E64^2*E$39^2+coefficients!$H$27*E64^2*E$40+coefficients!$H$28*E64^2*E$40^2+coefficients!$H$29*E65*E$39+coefficients!$H$30*E65*E$39^2+coefficients!$H$31*E65*E$40+coefficients!$H$32*E65*E$40^2+coefficients!$H$33*E65^2*E$39+coefficients!$H$34*E65^2*E$39^2+coefficients!$H$35*E65^2*E$40+coefficients!$H$36*E65^2*E$40^2+coefficients!$H$37*E$39*E$40+coefficients!$H$38*E$39*E$40^2+coefficients!$H$39*E$39^2*E$40+coefficients!$H$40*E$39^2*E$40^2) -> -0.869
A67: Largo total de perforaciones | B67: L | C67: m | E67: =(E$5*E$31+E$4*E$30+E$3*E$29+E$3*E$27)/(E$34-E$9-E66) -> 185.5
A68: Resultados Finales
A69: Largo total de perforaciones | B69: L | C69: m | E69: =E67 -> 185.5
A70: Profundidad de perforación | B70: H | C70: m | E70: =E67/E$39 -> 185.5

Sheet DATOS TUBERIAS
B1: Material | C1: Tipo | D1: Presión (Bar) | E1: Diam Nominal (Pul) | F1: DN=Do Exterior (mm) | G1: Di Interior (mm) | H1: Kp (W/m°K)
A2: =CONCATENATE(B2,C2,"PN",D2,E2) -> PolietilenoPE32PN43/4'' | B2: Polietileno | C2: PE32 | D2: 4 | E2: 3/4'' | F2: 20 | G2: 17.6 | H2: 0.40678
A3: =CONCATENATE(B3,C3,"PN",D3,E3) -> PolietilenoPE32PN41'' | B3: Polietileno | C3: PE32 | D3: 4 | E3: 1'' | F3: 25 | G3: 21 | H3: 0.40678
A4: PolietilenoPE32PN41 1/4'' | B4: Polietileno | C4: PE32 | D4: 4 | E4: 1 1/4'' | F4: 32 | G4: 28 | H4: 0.40678
A5: PolietilenoPE32PN41 1/2'' | B5: Polietileno | C5: PE32 | D5: 4 | E5: 1 1/2'' | F5: 40 | G5: 35.2 | H5: 0.40678
A6: PolietilenoPE32PN42'' | B6: Polietileno | C6: PE32 | D6: 4 | E6: 2'' | F6: 50 | G6: 44 | H6: 0.40678
A7: PolietilenoPE32PN42 1/2'' | B7: Polietileno | C7: PE32 | D7: 4 | E7: 2 1/2'' | F7: 63 | G7: 55.4 | H7: 0.40678
A8: PolietilenoPE32PN63/4'' | B8: Polietileno | C8: PE32 | D8: 6 | E8: 3/4'' | F8: 20 | G8: 16 | H8: 0.40678
A9: PolietilenoPE32PN61'' | B9: Polietileno | C9: PE32 | D9: 6 | E9: 1'' | F9: 25 | G9: 20.4 | H9: 0.40678
A10: PolietilenoPE32PN61 1/4'' | B10: Polietileno | C10: PE32 | D10: 6 | E10: 1 1/4'' | F10: 32 | G10: 26.2 | H10: 0.40678
A11: PolietilenoPE32PN61 1/2'' | B11: Polietileno | C11: PE32 | D11: 6 | E11: 1 1/2'' | F11: 40 | G11: 32.6 | H11: 0.40678
A12: PolietilenoPE32PN62'' | B12: Polietileno | C12: PE32 | D12: 6 | E12: 2'' | F12: 50 | G12: 40.8 | H12: 0.40678
A13: PolietilenoPE32PN62 1/2'' | B13: Polietileno | C13: PE32 | D13: 6 | E13: 2 1/2'' | F13: 63 | G13: 51.4 | H13: 0.40678
A14: PolietilenoPE32PN103/4'' | B14: Polietileno | C14: PE32 | D14: 10 | E14: 3/4'' | F14: 20 | G14: 14.4 | H14: 0.40678
A15: PolietilenoPE32PN101'' | B15: Polietileno | C15: PE32 | D15: 10 | E15: 1'' | F15: 25 | G15: 18 | H15: 0.40678
A16: PolietilenoPE32PN101 1/4'' | B16: Polietileno | C16: PE32 | D16: 10 | E16: 1 1/4'' | F16: 32 | G16: 23.2 | H16: 0.40678
A17: PolietilenoPE32PN101 1/2'' | B17: Polietileno | C17: PE32 | D17: 10 | E17: 1 1/2'' | F17: 40 | G17: 29 | H17: 0.40678
A18: PolietilenoPE32PN102'' | B18: Polietileno | C18: PE32 | D18: 10 | E18: 2'' | F18: 50 | G18: 36.2 | H18: 0.40678
A19: PolietilenoPE32PN102 1/2'' | B19: Polietileno | C19: PE32 | D19: 10 | E19: 2 1/2'' | F19: 63 | G19: 45.8 | H19: 0.40678
A20: PolietilenoPE50APN63/4'' | B20: Polietileno | C20: PE50A | D20: 6 | E20: 3/4'' | F20: - | G20: - | H20: 0.43
A21: PolietilenoPE50APN61'' | B21: Polietileno | C21: PE50A | D21: 6 | E21: 1'' | F21: 25 | G21: 21 | H21: 0.43
A22: PolietilenoPE50APN61 1/4'' | B22: Polietileno | C22: PE50A | D22: 6 | E22: 1 1/4'' | F22: 32 | G22: 28 | H22: 0.43
A23: PolietilenoPE50APN61 1/2'' | B23: Polietileno | C23: PE50A | D23: 6 | E23: 1 1/2'' | F23: 40 | G23: 35.2 | H23: 0.43
A24: PolietilenoPE50APN62'' | B24: Polietileno | C24: PE50A | D24: 6 | E24: 2'' | F24: 50 | G24: 44 | H24: 0.43
A25: PolietilenoPE50APN62 1/2'' | B25: Polietileno | C25: PE50A | D25: 6 | E25: 2 1/2'' | F25: 63 | G25: 55.4 | H25: 0.43
A26: PolietilenoPE50APN103/4'' | B26: Polietileno | C26: PE50A | D26: 10 | E26: 3/4'' | F26: 20 | G26: 16 | H26: 0.43
A27: PolietilenoPE50APN101'' | B27: Polietileno | C27: PE50A | D27: 10 | E27: 1'' | F27: 25 | G27: 20.4 | H27: 0.43
A28: PolietilenoPE50APN101 1/4'' | B28: Polietileno | C28: PE50A | D28: 10 | E28: 1 1/4'' | F28: 32 | G28: 26.2 | H28: 0.43
A29: PolietilenoPE50APN101 1/2'' | B29: Polietileno | C29: PE50A | D29: 10 | E29: 1 1/2'' | F29: 40 | G29: 32.6 | H29: 0.43
A30: PolietilenoPE50APN102'' | B30: Polietileno | C30: PE50A | D30: 10 | E30: 2'' | F30: 50 | G30: 40.8 | H30: 0.43
A31: PolietilenoPE50APN102 1/2'' | B31: Polietileno | C31: PE50A | D31: 10 | E31: 2 1/2'' | F31: 63 | G31: 51.4 | H31: 0.43
A32: PolietilenoPE50APN163/4'' | B32: Polietileno | C32: PE50A | D32: 16 | E32: 3/4'' | F32: - | G32: - | H32: 0.43
A33: PolietilenoPE50APN161'' | B33: Polietileno | C33: PE50A | D33: 16 | E33: 1'' | F33: - | G33: - | H33: 0.43
A34: PolietilenoPE50APN161 1/4'' | B34: Polietileno | C34: PE50A | D34: 16 | E34: 1 1/4'' | F34: 32 | G34: 23.2 | H34: 0.43
A35: PolietilenoPE50APN161 1/2'' | B35: Polietileno | C35: PE50A | D35: 16 | E35: 1 1/2'' | F35: 40 | G35: 29 | H35: 0.43
A36: PolietilenoPE50APN162'' | B36: Polietileno | C36: PE50A | D36: 16 | E36: 2'' | F36: 50 | G36: 36.2 | H36: 0.43
A37: PolietilenoPE50APN162 1/2'' | B37: Polietileno | C37: PE50A | D37: 16 | E37: 2 1/2'' | F37: 63 | G37: 45.8 | H37: 0.43
A38: PolietilenoPE50BPN63/4'' | B38: Polietileno | C38: PE50B | D38: 6 | E38: 3/4'' | F38: - | G38: - | H38: 0.29
A39: PolietilenoPE50BPN61'' | B39: Polietileno | C39: PE50B | D39: 6 | E39: 1'' | F39: 25 | G39: 21 | H39: 0.29
A40: PolietilenoPE50BPN61 1/4'' | B40: Polietileno | C40: PE50B | D40: 6 | E40: 1 1/4'' | F40: 32 | G40: 28 | H40: 0.29
A41: PolietilenoPE50BPN61 1/2'' | B41: Polietileno | C41: PE50B | D41: 6 | E41: 1 1/2'' | F41: 40 | G41: 35.2 | H41: 0.29
A42: PolietilenoPE50BPN62'' | B42: Polietileno | C42: PE50B | D42: 6 | E42: 2'' | F42: 50 | G42: 44 | H42: 0.29
A43: PolietilenoPE50BPN62 1/2'' | B43: Polietileno | C43: PE50B | D43: 6 | E43: 2 1/2'' | F43: 63 | G43: 55.4 | H43: 0.29
A44: PolietilenoPE50BPN103/4'' | B44: Polietileno | C44: PE50B | D44: 10 | E44: 3/4'' | F44: 20 | G44: 16 | H44: 0.29
A45: PolietilenoPE50BPN101'' | B45: Polietileno | C45: PE50B | D45: 10 | E45: 1'' | F45: 25 | G45: 20.4 | H45: 0.29
A46: PolietilenoPE50BPN101 1/4'' | B46: Polietileno | C46: PE50B | D46: 10 | E46: 1 1/4'' | F46: 32 | G46: 26.2 | H46: 0.29
A47: PolietilenoPE50BPN101 1/2'' | B47: Polietileno | C47: PE50B | D47: 10 | E47: 1 1/2'' | F47: 40 | G47: 32.6 | H47: 0.29
A48: PolietilenoPE50BPN102'' | B48: Polietileno | C48: PE50B | D48: 10 | E48: 2'' | F48: 50 | G48: 40.8 | H48: 0.29
A49: PolietilenoPE50BPN102 1/2'' | B49: Polietileno | C49: PE50B | D49: 10 | E49: 2 1/2'' | F49: 63 | G49: 51.4 | H49: 0.29
A50: PolietilenoPE50BPN163/4'' | B50: Polietileno | C50: PE50B | D50: 16 | E50: 3/4'' | F50: 20 | G50: 14.4 | H50: 0.29
A51: PolietilenoPE50BPN161'' | B51: Polietileno | C51: PE50B | D51: 16 | E51: 1'' | F51: 25 | G51: 18 | H51: 0.29
A52: PolietilenoPE50BPN161 1/4'' | B52: Polietileno | C52: PE50B | D52: 16 | E52: 1 1/4'' | F52: 32 | G52: 23.2 | H52: 0.29
A53: PolietilenoPE50BPN161 1/2'' | B53: Polietileno | C53: PE50B | D53: 16 | E53: 1 1/2'' | F53: 40 | G53: 29 | H53: 0.29
A54: PolietilenoPE50BPN162'' | B54: Polietileno | C54: PE50B | D54: 16 | E54: 2'' | F54: 50 | G54: 36.2 | H54: 0.29
A55: PolietilenoPE50BPN162 1/2'' | B55: Polietileno | C55: PE50B | D55: 16 | E55: 2 1/2'' | F55: 63 | G55: 45.8 | H55: 0.29
A56: PolietilenoPE80PN63/4'' | B56: Polietileno | C56: PE80 | D56: 6 | E56: 3/4'' | F56: - | G56: - | H56: 0.43
A57: PolietilenoPE80PN61'' | B57: Polietileno | C57: PE80 | D57: 6 | E57: 1'' | F57: - | G57: - | H57: 0.43
A58: PolietilenoPE80PN61 1/4'' | B58: Polietileno | C58: PE80 | D58: 6 | E58: 1 1/4'' | F58: - | G58: - | H58: 0.43
A59: PolietilenoPE80PN61 1/2'' | B59: Polietileno | C59: PE80 | D59: 6 | E59: 1 1/2'' | F59: 40 | G59: 35.4 | H59: 0.43
A60: PolietilenoPE80PN62'' | B60: Polietileno | C60: PE80 | D60: 6 | E60: 2'' | F60: 50 | G60: 45.2 | H60: 0.43
A61: PolietilenoPE80PN62 1/2'' | B61: Polietileno | C61: PE80 | D61: 6 | E61: 2 1/2'' | F61: 63 | G61: 57 | H61: 0.43
A62: PolietilenoPE80PN103/4'' | B62: Polietileno | C62: PE80 | D62: 10 | E62: 3/4'' | F62: 20 | G62: 16 | H62: 0.43
A63: PolietilenoPE80PN101'' | B63: Polietileno | C63: PE80 | D63: 10 | E63: 1'' | F63: 25 | G63: 21 | H63: 0.43
A64: PolietilenoPE80PN101 1/4'' | B64: Polietileno | C64: PE80 | D64: 10 | E64: 1 1/4'' | F64: 32 | G64: 27.2 | H64: 0.43
A65: PolietilenoPE80PN101 1/2'' | B65: Polietileno | C65: PE80 | D65: 10 | E65: 1 1/2'' | F65: 40 | G65: 34 | H65: 0.43
A66: PolietilenoPE80PN102'' | B66: Polietileno | C66: PE80 | D66: 10 | E66: 2'' | F66: 50 | G66: 42.6 | H66: 0.43
A67: =CONCATENATE(B67,C67,"PN",D67,E67) -> PolietilenoPE80PN102 1/2'' | B67: Polietileno | C67: PE80 | D67: 10 | E67: 2 1/2'' | F67: 63 | G67: 53.6 | H67: 0.43
A68: PolietilenoPE100PN63/4'' | B68: Polietileno | C68: PE100 | D68: 6 | E68: 3/4'' | F68: 20 | G68: 16 | H68: 0.43
A69: PolietilenoPE100PN61'' | B69: Polietileno | C69: PE100 | D69: 6 | E69: 1'' | F69: 25 | G69: 21 | H69: 0.43
A70: PolietilenoPE100PN61 1/4'' | B70: Polietileno | C70: PE100 | D70: 6 | E70: 1 1/4'' | F70: 32 | G70: 28 | H70: 0.43
A71: PolietilenoPE100PN61 1/2'' | B71: Polietileno | C71: PE100 | D71: 6 | E71: 1 1/2'' | F71: 40 | G71: 35.4 | H71: 0.43
A72: PolietilenoPE100PN62'' | B72: Polietileno | C72: PE100 | D72: 6 | E72: 2'' | F72: 50 | G72: 45.4 | H72: 0.43
A73: PolietilenoPE100PN62 1/2'' | B73: Polietileno | C73: PE100 | D73: 6 | E73: 2 1/2'' | F73: 63 | G73: 58.2 | H73: 0.43
A74: PolietilenoPE100PN103/4'' | B74: Polietileno | C74: PE100 | D74: 10 | E74: 3/4'' | F74: 20 | G74: 16 | H74: 0.43
A75: PolietilenoPE100PN101'' | B75: Polietileno | C75: PE100 | D75: 10 | E75: 1'' | F75: 25 | G75: 21 | H75: 0.43
A76: PolietilenoPE100PN101 1/4'' | B76: Polietileno | C76: PE100 | D76: 10 | E76: 1 1/4'' | F76: 32 | G76: 27.2 | H76: 0.43
A77: PolietilenoPE100PN101 1/2'' | B77: Polietileno | C77: PE100 | D77: 10 | E77: 1 1/2'' | F77: 40 | G77: 35.2 | H77: 0.43
A78: PolietilenoPE100PN102'' | B78: Polietileno | C78: PE100 | D78: 10 | E78: 2'' | F78: 50 | G78: 44 | H78: 0.43
A79: PolietilenoPE100PN102 1/2'' | B79: Polietileno | C79: PE100 | D79: 10 | E79: 2 1/2'' | F79: 63 | G79: 55.4 | H79: 0.43
A80: PolietilenoPE100PN163/4'' | B80: Polietileno | C80: PE100 | D80: 16 | E80: 3/4'' | F80: 20 | G80: 16 | H80: 0.43
A81: PolietilenoPE100PN161'' | B81: Polietileno | C81: PE100 | D81: 16 | E81: 1'' | F81: 25 | G81: 20.4 | H81: 0.43
A82: PolietilenoPE100PN161 1/4'' | B82: Polietileno | C82: PE100 | D82: 16 | E82: 1 1/4'' | F82: 32 | G82: 26.2 | H82: 0.43
A83: PolietilenoPE100PN161 1/2'' | B83: Polietileno | C83: PE100 | D83: 16 | E83: 1 1/2'' | F83: 40 | G83: 32.6 | H83: 0.43
A84: PolietilenoPE100PN162'' | B84: Polietileno | C84: PE100 | D84: 16 | E84: 2'' | F84: 50 | G84: 40.8 | H84: 0.43
A85: PolietilenoPE100PN162 1/2'' | B85: Polietileno | C85: PE100 | D85: 16 | E85: 2 1/2'' | F85: 63 | G85: 51.4 | H85: 0.43
A86: PolietilenoPE100PN253/4'' | B86: Polietileno | C86: PE100 | D86: 25 | E86: 3/4'' | F86: - | G86: - | H86: 0.43
A87: PolietilenoPE100PN251'' | B87: Polietileno | C87: PE100 | D87: 25 | E87: 1'' | F87: 25 | G87: 18 | H87: 0.43
A88: PolietilenoPE100PN251 1/4'' | B88: Polietileno | C88: PE100 | D88: 25 | E88: 1 1/4'' | F88: 32 | G88: 23.2 | H88: 0.43
A89: PolietilenoPE100PN251 1/2'' | B89: Polietileno | C89: PE100 | D89: 25 | E89: 1 1/2'' | F89: 40 | G89: 29 | H89: 0.43
A90: PolietilenoPE100PN252'' | B90: Polietileno | C90: PE100 | D90: 25 | E90: 2'' | F90: 50 | G90: 36.2 | H90: 0.43
A91: PolietilenoPE100PN252 1/2'' | B91: Polietileno | C91: PE100 | D91: 25 | E91: 2 1/2'' | F91: 63 | G91: 45.8 | H91: 0.43
A92: PolibutilenoPB4PN83/4'' | B92: Polibutileno | C92: PB4 | D92: 8 | E92: 3/4'' | F92: 22 | G92: 17.2 | H92: 0.36
A93: PolibutilenoPB4PN103/4'' | B93: Polibutileno | C93: PB4 | D93: 10 | E93: 3/4'' | F93: 22 | G93: 17.2 | H93: 0.36
A94: PolibutilenoPB4PN101'' | B94: Polibutileno | C94: PB4 | D94: 10 | E94: 1'' | F94: 25 | G94: 20.4 | H94: 0.36
A95: PolibutilenoPB4PN101 1/4'' | B95: Polibutileno | C95: PB4 | D95: 10 | E95: 1 1/4'' | F95: 32 | G95: 26.2 | H95: 0.36
A96: PolibutilenoPB4PN101 1/2'' | B96: Polibutileno | C96: PB4 | D96: 10 | E96: 1 1/2'' | F96: 40 | G96: 32.6 | H96: 0.36
A97: PolibutilenoPB5PN83/4'' | B97: Polibutileno | C97: PB5 | D97: 8 | E97: 3/4'' | F97: 22 | G97: 17.2 | H97: 0.38
A98: PolibutilenoPB5PN81'' | B98: Polibutileno | C98: PB5 | D98: 8 | E98: 1'' | F98: 25 | G98: 20.4 | H98: 0.38
A99: PolibutilenoPB5PN81 1/4'' | B99: Polibutileno | C99: PB5 | D99: 8 | E99: 1 1/4'' | F99: 32 | G99: 26.2 | H99: 0.38
A100: PolibutilenoPB5PN81 1/2'' | B100: Polibutileno | C100: PB5 | D100: 8 | E100: 1 1/2'' | F100: 40 | G100: 32.6 | H100: 0.38
A101: PolibutilenoPB5PN82'' | B101: Polibutileno | C101: PB5 | D101: 8 | E101: 2'' | F101: 50 | G101: 40.8 | H101: 0.38
A102: PolibutilenoPB5PN82 1/2'' | B102: Polibutileno | C102: PB5 | D102: 8 | E102: 2 1/2'' | F102: 63 | G102: 51.4 | H102: 0.38
A103: PolibutilenoPB5PN103/4'' | B103: Polibutileno | C103: PB5 | D103: 10 | E103: 3/4'' | F103: 22 | G103: 17.2 | H103: 0.38
A104: PolibutilenoPB5PN101'' | B104: Polibutileno | C104: PB5 | D104: 10 | E104: 1'' | F104: 25 | G104: 20.4 | H104: 0.38
A105: PolibutilenoPB5PN101 1/4'' | B105: Polibutileno | C105: PB5 | D105: 10 | E105: 1 1/4'' | F105: 32 | G105: 26.2 | H105: 0.38
A106: PolibutilenoPB5PN101 1/2'' | B106: Polibutileno | C106: PB5 | D106: 10 | E106: 1 1/2'' | F106: 40 | G106: 32.6 | H106: 0.38
A107: PolibutilenoPB5PN102'' | B107: Polibutileno | C107: PB5 | D107: 10 | E107: 2'' | F107: 50 | G107: 40.8 | H107: 0.38
A108: PolibutilenoPB5PN102 1/2'' | B108: Polibutileno | C108: PB5 | D108: 10 | E108: 2 1/2'' | F108: 63 | G108: 51.4 | H108: 0.38
A110: Polietileno
A111: Polibutileno
A112: PE32
A113: PE50A
A114: PE50B
A115: PE80
A116: PE100
A117: PB4
A118: PB5
A119: PN4
A120: PN6
A121: PN8
A122: PN10
A123: PN16
A124: PN25
A125: 3/4”
A126: 1”
A127: 1 1/4”
A128: 1 1/2”
A129: 2”
A130: 2 1/2”

Sheet DATOS FLUIDOS
A1: Tipo | B1: T° Media °C | C1: Punto Congelamiento °C | D1: Densidad kg/m3 | E1: Capacidad Térmica J/kg°K | F1: Conductividad W/m°K | G1: Viscosidad Pa s
A2: Agua Pura | B2: 20 | C2: 0 | D2: 998.1 | E2: 4173 | F2: 0.5929 | G2: 0.001002
A3: Agua/Etilenglicol | B3: =B8-273.15 -> 32 | C3: =B15-273.15 -> 0 | D3: =B10 -> 995.0 | E3: =B11*1000 -> 4198.0 | F3: =B12 -> 0.608 | G3: =B13 -> 0.000751
A4: Agua/Propilenglicol | B4: =C8-273.15 -> 32 | C4: =C15-273.15 -> 0 | D4: =C10 -> 994.5 | E4: =C11*1000 -> 4220.0 | F4: =C12 -> 0.619 | G4: =C13 -> 0.000779
A6: Mezcla con | B6: Etilenglicol | C6: Propilenglico
A7: % Peso de la solución | B7: ='TUBERIA Y FLUIDO'!E4/100 -> 0 | C7: ='TUBERIA Y FLUIDO'!E4/100 -> 0
A8: Temperatura media del fluido | B8: ='TUBERIA Y FLUIDO'!E5+273.15 -> 305.15 | C8: ='TUBERIA Y FLUIDO'!E5+273.15 -> 305.15 | D8: [K]
A10: Densidad | B10: =B20+B21*B7+B22*273.15/B8+B23*B7*273.15/B8+B24*(273.15/B8)^2 -> 995.0071282 | C10: =B29+B30*C7+B31*273.15/C8+B32*C7*273.15/C8+B33*(273.15/C8)^2 -> 994.5227978 | D10: [kg/m3]
A11: Capacidad Térmica | B11: =C20+C21*B7+C22*273.15/B8+C23*B7*273.15/B8+C24*(273.15/B8)^2 -> 4.197974372 | C11: =C29+C30*C7+C31*273.15/C8+C32*C7*273.15/C8+C33*(273.15/C8)^2 -> 4.220015514 | D11: [kJ/kg K]
A12: Conductividad Térmica | B12: =D20+D21*B7+D22*273.15/B8+D23*B7*273.15/B8+D24*(273.15/B8)^2 -> 0.6082432515 | C12: =D29+D30*C7+D31*273.15/C8+D32*C7*273.15/C8+D33*(273.15/C8)^2 -> 0.6190781802 | D12: [W/m K]
A13: Viscocidad Dinámica | B13: =EXP(E20+E21*B7+E22*273.15/B8+E23*B7*273.15/B8+E24*(273.15/B8)^2) -> 0.0007513995967 | C13: =EXP(E29+E30*C7+E31*273.15/C8+E32*C7*273.15/C8+E33*(273.15/C8)^2) -> 0.0007789535415 | D13: [Pa s]
A14: Prandtl Number | B14: =EXP(F20+F21*B7+F22*273.15/B8+F23*B7*273.15/B8+F24*(273.15/B8)^2) -> 5.135221482 | C14: =EXP(F29+F30*C7+F31*273.15/C8+F32*C7*273.15/C8+F33*(273.15/C8)^2) -> 5.23738614
A15: T° Congelamiento | B15: =273.15*(G19+G20*B7+G21*(B7)^2) -> 273.15 | C15: =273.15*(G28+G29*C7+G30*(C7)^2) -> 273.15 | D15: [K]
A17: Parámateros del modelo matematico de soluciones acuosas de etilenglicol
A18: Coef. | B18: ρ [kg/m3] | C18: Cp [kJ/kg K] | D18: λ [W/m K] | E18: µ [Pa s] | F18: Pr | G18: Tf [K]
A19: 0 | G19: 1
A20: 1 | B20: 658.49825 | C20: 5.36449 | D20: 0.83818 | E20: -4.63024 | F20: 3.96951 | G20: -0.06982
A21: 2 | B21: -54.81501 | C21: 0.78863 | D21: -1.3762 | E21: -2.14817 | F21: 0.70076 | G21: -0.3578
A22: 3 | B22: 664.71643 | C22: -2.59001 | D22: -0.07629 | E22: -12.70106 | F22: -12.98045
A23: 4 | B23: 232.72605 | C23: -2.73187 | D23: 1.0772 | E23: 5.40536 | F23: 2.64789
A24: 5 | B24: -322.61661 | C24: 1.43759 | D24: -0.20174 | E24: 10.9899 | F24: 11.589
A26: Parámateros del modelo matematico de soluciones acuosas de propilenglicol
A27: Coef. | B27: ρ [kg/m3] | C27: Cp [kJ/kg K] | D27: λ [W/m K] | E27: µ [Pa s] | F27: Pr | G27: Tf [K]
A28: 0 | G28: 1
A29: 1 | B29: 508.41109 | C29: 4.47642 | D29: 1.18886 | E29: -1.02798 | F29: 6.66139 | G29: -0.03736
A30: 2 | B30: -182.4082 | C30: 0.60863 | D30: -1.4911 | E30: -10.03298 | F30: -6.9944 | G30: -0.4005
A31: 3 | B31: 965.76507 | C31: -0.71497 | D31: -0.69682 | E31: -19.93497 | F31: -18.55114
A32: 4 | B32: 280.29104 | C32: -1.93855 | D32: 1.13633 | E32: 14.65802 | F32: 12.0464
A33: 5 | B33: -472.2251 | C33: 0.47873 | D33: 0.06735 | E33: 14.6205 | F33: 14.47735

Sheet PROPIEDAD FLUIDOS
A1: Forced Convection Heat Transfer Coefficient Correlations (S.I. units) | J1: Equations for Forced Convection Flow inside Pipes
A3: 1. Turbulent Flow Inside a Circular Tube
A5: Inputs | F5: Calculations
A7: Fluid = | B7: ='TUBERIA Y FLUIDO'!E3 -> Agua Pura | F7: Reynolds Number, Re = | H7: =C13*C16*C18/C20 -> 17,524
A9: Ave. Fluid Temp, Tb = | C9: =VLOOKUP(B7,'DATOS FLUIDOS'!$A$2:$G$4,2,FALSE) -> 20 | D9: oC | F9: Prandtl Number, Pr = | H9: =C20*C22/C28 -> 7.05
A11: Pipe Diam., D = | C11: ='TUBERIA Y FLUIDO'!B8*1000 -> 21 | D11: mm | F11: Correlation #1, the Dittus Boelter Correlation | K11: Correlation #1, the Dittus Boelter Correlation
A13: Pipe Diam., D = | C13: =C11/1000 -> 0.021 | D13: m | F13: Twall > Tfluid: | G13: Nuo = | H13: =0.023*(H7^0.8)*(H9^0.4) -> 125
A14: (calculated)
G15: ho = | H15: =H13*C$31/C$13 -> 12678 | I15: kJ/hr-m2-K
A16: Ave. Velocity, V = | C16: =('TUBERIA Y FLUIDO'!E7/(1000*3600))/(PI()*'TUBERIA Y FLUIDO'!B8^2/4) -> 0.8377588992 | D16: m/s
F17: Twall > Tfluid: | G17: Nuo = | H17: =0.026*(H7^0.8)*(H9^0.3) -> 116
A18: Fluid Density, r = | C18: ='TUBERIA Y FLUIDO'!E8 -> 998.1 | D18: kg/m3
G19: ho = | H19: =H17*C$31/C$13 -> 11788 | I19: kJ/hr-m2-K
A20: Fluid viscosity, m = | C20: ='TUBERIA Y FLUIDO'!E11 -> 0.001002 | D20: N-s/m2
G21: f = | H21: =(0.79*LN(H7)-1.64)^(-2) -> 0.02706 | K21: Correlation #2, Convection H.T., Turb. Pipe Flow
A22: Fluid Sp. Heat, Cp = | C22: ='TUBERIA Y FLUIDO'!E9/1000 -> 4.173 | D22: kJ/kg-K
F23: Correlation #2:
A24: Fluid Thermal
A25: Conductivity, k = | C25: ='TUBERIA Y FLUIDO'!E10 -> 0.5929 | D25: W/m-K | G25: Nuo = | H25: =((H$21/8)*(H$7-1000)*H$9)/(1+(12.7*((H$21/8)^0.5)*((H$9^(2/3))-1))) -> 132
A27: Fluid Thermal | G27: ho = | H27: =H25*C$31/C$13 -> 13454 | I27: kJ/hr-m2-K
A28: Conductivity, k = | C28: =C25/1000 -> 0.0005929 | D28: kJ/s-m-K
A30: Fluid Thermal | F30: Correlation #3: | K30: Correlation #3, Convection H.T., Turb. Pipe Flow
A31: Conductivity, k = | C31: =C28*3600 -> 2.13444 | D31: kJ/hr-m-K
G32: Nuo = | H32: =((H$21/8)*(H$7-1000)*H$9)*(1+((C13/C33)^(2.3)))/(1+(12.7*((H$21/8)^0.5)*((H$9^(2/3))-1))) -> 132
A33: Pipe Length, L = | C33: 5 | D33: m
G34: ho = | H34: =H32*C$31/C$13 -> 13454 | I34: kJ/hr-m2-K
A38: Correction for Temperature Variation: ( h = ho(mb/mw)0.14
A40: Inputs | F40: Calculations
A42: Ave. Fluid Temp, Tb = | C42: 30 | D42: oC | F42: Correlation #1, the Dittus Boelter Correlation
A44: Fluid Visc. at Tb, mb = | C44: 0.000785 | D44: N-s/m2 | F44: Twall > Tfluid: | G44: h = | H44: =H15*(C$44/C$48)^0.14 -> 13259 | I44: kJ/hr-m2-K
A46: Ave. Wall Temp, Tw = | C46: 50 | D46: oC | F46: Twall > Tfluid: | G46: h = | H46: =H19*(C$44/C$48)^0.14 -> 12329 | I46: kJ/hr-m2-K
A48: Fluid Visc. at Tw, mw = | C48: 0.00057 | D48: N-s/m2 | F48: Correlation #2:
G50: h = | H50: =H27*(C$44/C$48)^0.14 -> 14071 | I50: kJ/hr-m2-K
F52: Correlation #3:
G54: h = | H54: =H34*(C$44/C$48)^0.14 -> 14071 | I54: kJ/hr-m2-K

Sheet DATOS SUELOS
B1: TIPO DE ROCA | C1: Conductividad térmica (W/mK) | F1: Capacidad térmica volumétrica (MJ/m3K)
C2: Mín. | D2: Valor típico | E2: Máx.
B3: DEFINIDO POR EL USUARIO
A4: =CONCATENATE($B$3," - ",B4) -> DEFINIDO POR EL USUARIO - Maxey Elementary School | B4: Maxey Elementary School | D4: 2.25 | F4: 2.877
A5: =CONCATENATE($B$3," - ",B5) -> DEFINIDO POR EL USUARIO - Fort Polk | B5: Fort Polk | D5: 2.423 | F5: 2.676
A6: =CONCATENATE($B$3," - ",B6) -> DEFINIDO POR EL USUARIO -
B7: ROCAS MAGMÁTICAS
A8: =CONCATENATE($B$7," - ",B8) -> ROCAS MAGMÁTICAS - Basalto | B8: Basalto | C8: 1.3 | D8: 1.7 | E8: 2.3 | F8: 2.45
A9: ROCAS MAGMÁTICAS - Diorita | B9: Diorita | C9: 2 | D9: 2.6 | E9: 2.9 | F9: 2.9
A10: ROCAS MAGMÁTICAS - Grabo | B10: Grabo | C10: 1.7 | D10: 1.9 | E10: 2.5 | F10: 2.6
A11: ROCAS MAGMÁTICAS - Granito | B11: Granito | C11: 2.1 | D11: 3.4 | E11: 4.1 | F11: 2.55
A12: ROCAS MAGMÁTICAS - Peridotita | B12: Peridotita | C12: 3.8 | D12: 4 | E12: 5.3 | F12: 2.7
A13: ROCAS MAGMÁTICAS - Riolita | B13: Riolita | C13: 3.1 | D13: 3.3 | E13: 3.4 | F13: 2.1
B14: ROCAS METAMÓRFICAS
A15: =CONCATENATE($B$14," - ",B15) -> ROCAS METAMÓRFICAS - Gneis | B15: Gneis | C15: 1.9 | D15: 2.9 | E15: 4 | F15: 2
A16: =CONCATENATE($B$14," - ",B16) -> ROCAS METAMÓRFICAS - Mármol | B16: Mármol | C16: 1.3 | D16: 2.1 | E16: 3.1 | F16: 2
A17: =CONCATENATE($B$14," - ",B17) -> ROCAS METAMÓRFICAS - Metacuarcita | B17: Metacuarcita | D17: 5.8 | F17: 2.1
A18: =CONCATENATE($B$14," - ",B18) -> ROCAS METAMÓRFICAS - Micasquistos | B18: Micasquistos | C18: 1.5 | D18: 2 | E18: 3.1 | F18: 2.2
A19: =CONCATENATE($B$14," - ",B19) -> ROCAS METAMÓRFICAS - Esquistos arcillosos | B19: Esquistos arcillosos | C19: 1.5 | D19: 2.1 | E19: 2.1 | F19: 2.35
B20: ROCAS SEDIMENTARIAS
A21: =CONCATENATE($B$20," - ",B21) -> ROCAS SEDIMENTARIAS - Caliza | B21: Caliza | C21: 2.5 | D21: 2.8 | E21: 4 | F21: 2.25
A22: ROCAS SEDIMENTARIAS - Marga | B22: Marga | C22: 1.5 | D22: 2.1 | E22: 3.5 | F22: 2.25
A23: ROCAS SEDIMENTARIAS - Cuarcita | B23: Cuarcita | C23: 3.6 | D23: 6 | E23: 6.6 | F23: 2.15
A24: ROCAS SEDIMENTARIAS - Sal | B24: Sal | C24: 5.3 | D24: 5.4 | E24: 6.4 | F24: 1.2
A25: ROCAS SEDIMENTARIAS - Arenisca | B25: Arenisca | C25: 1.3 | D25: 2.3 | E25: 5.1 | F25: 2.2
A26: ROCAS SEDIMENTARIAS - Limolitas y argilitas | B26: Limolitas y argilitas | C26: 1.1 | D26: 2.2 | E26: 3.5 | F26: 2.25
B27: ROCAS NO CONSOLIDADAS
A28: =CONCATENATE($B$27," - ",B28) -> ROCAS NO CONSOLIDADAS - Grava, seca | B28: Grava, seca | C28: 0.4 | D28: 0.4 | E28: 0.5 | F28: 1.5
A29: =CONCATENATE($B$27," - ",B29) -> ROCAS NO CONSOLIDADAS - Grava, saturada de agua | B29: Grava, saturada de agua | D29: 1.8 | F29: 2.4
A30: ROCAS NO CONSOLIDADAS - Arena, seca | B30: Arena, seca | C30: 0.3 | D30: 0.4 | E30: 0.8 | F30: 1.45
A31: ROCAS NO CONSOLIDADAS - Arena, saturada de agua | B31: Arena, saturada de agua | C31: 1.7 | D31: 2.4 | E31: 5 | F31: 2.55
A32: ROCAS NO CONSOLIDADAS - Arcilla/limo, seco | B32: Arcilla/limo, seco | C32: 0.4 | D32: 0.5 | E32: 1 | F32: 1.55
A33: ROCAS NO CONSOLIDADAS - Arcilla/limo, saturado de agua | B33: Arcilla/limo, saturado de agua | C33: 0.9 | D33: 1.7 | E33: 2.3 | F33: 2.5
A34: ROCAS NO CONSOLIDADAS - Turba | B34: Turba | C34: 0.2 | D34: 0.4 | E34: 0.7 | F34: 2.15
B35: OTROS MATERIALES
A36: =CONCATENATE($B$35," - ",B36) -> OTROS MATERIALES - Bentonita | B36: Bentonita | C36: 0.5 | D36: 0.6 | E36: 0.8 | F36: 3.9
A37: =CONCATENATE($B$35," - ",B37) -> OTROS MATERIALES - Hormigón | B37: Hormigón | C37: 0.9 | D37: 1.6 | E37: 2 | F37: 1.8
A38: OTROS MATERIALES - Hielo (-10°C) | B38: Hielo (-10°C) | D38: 2.32 | F38: 1.87
A39: OTROS MATERIALES - Plástico (PE) | B39: Plástico (PE) | D39: 0.39
A40: OTROS MATERIALES - Aire (0-20 °C, seco) | B40: Aire (0-20 °C, seco) | D40: 0.02 | F40: 0.0012
A41: OTROS MATERIALES - Acero | B41: Acero | D41: 60 | F41: 3.12
A42: OTROS MATERIALES - Agua (+ 10°C) | B42: Agua (+ 10°C) | D42: 0.58 | F42: 4.19

Sheet INGRESO TERRENO
A1: INGRESO TIPO SUELO
A3: Tipo Suelo
A4: Conductividad Térmica | C4: W/m°K
A5: Capacidad Térmica | C5: MJ/m3°K

Sheet coefficients
B2: Coefficients for f6h, f1m, f10y functions | G2: Coefficients for Tp correlation
C3: f6h | D3: f1m | E3: f10y | G3: Tp function's coefficients
B4: a0 | C4: 0.6619352 | D4: 0.4132728 | E4: 0.3057646 | G4: b0 | H4: 7.8189E+00
B5: a1 | C5: -4.815693 | D5: 0.2912981 | E5: 0.08987446 | G5: b1 | H5: -6.4270E+01
B6: a2 | C6: 15.03571 | D6: 0.07589286 | E6: -0.09151786 | G6: b2 | H6: 1.5387E+02
B7: a3 | C7: -0.09879421 | D7: 0.1563978 | E7: -0.03872451 | G7: b3 | H7: -8.4809E+01
B8: a4 | C8: 0.02917889 | D8: -0.2289355 | E8: 0.1690853 | G8: b4 | H8: 3.4610E+00
B9: a5 | C9: 0.1138498 | D9: -0.004927554 | E9: -0.02881681 | G9: b5 | H9: -9.4753E-01
B10: a6 | C10: 0.005610933 | D10: -0.002694979 | E10: -0.002886584 | G10: b6 | H10: -6.0416E-02
B11: a7 | C11: 0.7796329 | D11: -0.6380360 | E11: -0.1723169 | G11: b7 | H11: 1.5631E+00
B12: a8 | C12: -0.3243880 | D12: 0.2950815 | E12: 0.03112034 | G12: b8 | H12: -8.9416E-03
B13: a9 | C13: -0.01824101 | D13: 0.1493320 | E13: -0.1188438 | G13: b9 | H13: 1.9061E-05
G14: b10 | H14: -2.2890E+00
G15: b11 | H15: 1.0187E-01
G16: b12 | H16: 6.5690E-03
G17: b13 | H17: -4.0918E+01
G18: b14 | H18: 1.5557E+01
G19: b15 | H19: -1.9107E+01
G20: b16 | H20: 1.0529E-01
G21: b17 | H21: 2.5501E+01
G22: b18 | H22: -2.1177E+00
G23: b19 | H23: 7.7529E+01
G24: b20 | H24: -5.0454E+01
G25: b21 | H25: 7.6352E+01
G26: b22 | H26: -5.3719E-01
G27: b23 | H27: -1.3200E+02
G28: b24 | H28: 1.2878E+01
G29: b25 | H29: 1.2697E-01
G30: b26 | H30: -4.0284E-04
G31: b27 | H31: -7.2065E-02
G32: b28 | H32: 9.5184E-04
G33: b29 | H33: -2.4167E-02
G34: b30 | H34: 9.6811E-05
G35: b31 | H35: 2.8317E-02
G36: b32 | H36: -1.0905E-03
G37: b33 | H37: 1.2207E-01
G38: b34 | H38: -7.1050E-03
G39: b35 | H39: -1.1129E-03
G40: b36 | H40: -4.5566E-04

Sheet Instructions
A1: Instructions for using the "bh_sizing" worksheet, v. 1
A2: 1) Fill in the coloured cells (D3 to D21 or E3 to E21) of the section "1st set of inputs" with your input parameters | C2: Single borehole design | E2: Multiple boreholes design
A3: 2) The results of the calculations with Tp = 0 (without taking into account the thermal interference among boreholes) are given in section "1st set of results". For single borehole designs, calculations stop here and the value in cell D35 is the required borehole depth. For multiple boreholes, the length given in cell D35 should be regarded as a first approximation of the total borehole length.
A4: 3) To size a borefield by taking into account the thermal interference, determine the three parameters B (borehole spacing) , NB (number of boreholes) and A (borefield aspect ratio). Use the 1st set of results, which gives a first approximation of the final value of the borehole length, to estimate these three parameters.
A5: 4) Fill in the coloured cells (E38, E39, E40) of the section "2nd set of inputs" with the values of B, NB, and A.
A6: 5) The final results are given at the end of the section "final results", i.e, cells E69 and E70.
A12: ASHRAE does not warrant nor guarantee the spreadsheet “Borehole Sizing." The entire risk of the use of any information contained herein is assumed by the user
